{"text_format":"3","workbook":"xlsx","n_sheets":11,"sheets":["Intro","Grunddata","Ekonomiska nyttor","Kvalitativa nyttor","Kostnader","Angelägenhet","Genomförbarhet","Risk- & Hinderanalys","Business Case","-Admin-","-Kalkyldata-"],"not_rendered":{"charts":10,"images":1,"macros":1,"defined_names":51,"comments":1,"pivot_tables":9},"read":"whole","date_system":"1900"}

{"sheet":"Intro","index":0,"n_rows":55,"n_cols":5,"rows_kept":55,"merged":[[1,6,2,12],[3,4,3,11],[4,4,4,11]]}
[]
[{"$nulls":4},"Verktyg för dokumentation av "]
[{"$nulls":4},"Business Case"]
[]
[]
[]
[{"$nulls":4},"Detta är Ekonomistyrningsverkets stödverktyg (v. 2.0-5) för dokumentation av ett Business Case inklusive kostnads-/nyttokalkyl och andra beslutsparametrar. Verktyget syftar till att underlätta dokumentation och kalkylering av nyttor, kostnader, angelägenhet, hinder samt genomförbarhetsaspekten på den önskade förändringen för offentliga investeringar i verksamhetsutveckling."]
[]
[null,"Verksamhetsområde",null,null,"Digitalisering och medicinsk teknik"]
[null,"Mallversion",null,null,"1.0"]
[null,"Datum",null,null,"2019-01-16"]
[null,"Kontaktuppgifter",null,null,"Toni Suhonen (toni.suhonen@regionvasterbotten.se), Affärsutvecklare digitalisering"]
[{"$nulls":4},"Lina Sandman (lina.sandman@regionvasterbotten.se), Controller "]
{"$rows_empty":41}
[null,"Kontaktuppgifter (ESV)",null,null,"Daniel Jafari (daniel.jafari@esv.se)"]

{"sheet":"Grunddata","index":1,"n_rows":39,"n_cols":6,"rows_kept":39,"merged":[[0,5,0,8],[3,2,3,3],[3,4,3,5],[4,2,4,3],[4,4,4,5],[5,2,5,3],[5,4,5,5],[6,2,6,3],[6,4,6,5],[10,5,10,15],[11,5,11,15],[12,5,12,15],[13,5,13,15],[14,5,14,15],[15,5,15,15],[16,5,16,15],[17,5,17,15],[21,3,21,5],[22,3,22,5],[23,3,23,5],[24,3,24,5],[25,3,25,5],[26,3,26,5],[27,3,27,5],[28,3,28,5],[29,3,29,5],[30,3,30,5],[31,3,31,5],[35,2,35,5],[36,5,36,15],[37,5,37,15],[38,5,38,15],[39,5,39,15],[40,5,40,15],[41,5,41,15],[42,5,42,15],[43,5,43,15],[44,5,44,15],[45,5,45,15],[46,5,46,15],[47,5,47,15],[48,5,48,15],[49,5,49,15],[50,5,50,15]]}
[null,null,"GRUNDDATA"]
[null,null,"I den här fliken anger du bland annat utvecklingsinsatsens grundläggande ingångsvärden och intressenter"]
[]
[null,null,"UTVECKLINGSINSATSENS BENÄMNING",null,"Digitala patientenkäter"]
[null,null,"KALKYLANSVARIG",null,"Jim Johansson"]
[null,null,"DATUM",null,"2019-12-19"]
[null,null,"VERSION",null,"0.9"]
[]
[null,null,"EKONOMISKA PARAMETRAR"]
[null,null,"I denna tabell anges grundläggande ekonomiska parametrar som används för beräkning av nyttor och kostnader"]
[null,null,"Parameter","Värde","Enhet","Instruktioner"]
[null,null,"Startår",2020,null,"Ange från vilket år periodiserade kostnader och nyttor ska anges. Används även som nuvarande år vid diskontering av kassaflöde"]
[null,null,"Kalkylperiod",6,"Antal år","Ange antal år inklusive startår som kostnader och nyttor anges för (max 6)"]
[null,null,"Kalkylränta",{"v":0.01,"d":"1.00%"},"%","Ange vilken ränta som ska användas i kalkyl av nytta och kostnader (statlig lånefinansieringsränta)"]
[null,null,"Intern kostnad per timme",400,"kr/h","Ange kostnad per arbetstimme för intern personal. Detta belopp används i beräkningar då kostnad anges i timmar istället för kronor."]
[null,null,"Extern kostnad per timme",900,"kr/h","Ange kostnad per arbetstimme för extern personal. Detta belopp används i beräkningar då kostnad anges i timmar istället för kronor."]
[null,null,"Internt värde per timme",200,"kr/h","Ange värde per arbetstimme för intern personal. Detta belopp används i beräkningar då värdet anges i timmar istället för kronor."]
[null,null,"Externt värde per timme",800,"kr/h","Ange värde per arbetstimme för extern personal. Detta belopp används i beräkningar då värdet anges i timmar istället för kronor."]
[]
[null,null,"INTRESSENTER"]
[null,null,"I denna tabell anges som berörs av utvecklingsinsatsens resultat alternativt är involverade i genomförandet. De intressenter som anges här kommer att visas och bli valbara i den här mallens flikar om kostnader och nyttor"]
[null,null,"Intressent kategori","Intressent"]
[null,null,"Region/Landsting","RV Verksamheter"]
[null,null,"Region/Landsting","RV Hälsocentraler"]
[null,null,"Region/Landsting","Folkhälsa"]
[null,null,"Region/Landsting","ANOPIVA"]
[null,null,"Region/Landsting","VO Digitalisering och medicinsk teknik"]
[null,null,"Region/Landsting","Patienter"]
[null,null,"Region/Landsting","Epidemiologen"]
[null,null,"Region/Landsting","Biobanken Norr"]
[]
[]
[]
[]
[null,null,"ANDRA ANTAGANDEN I KALKYLEN"]
[null,null,"I denna tabell dokumenteras de andra ataganden som är gjorde i denna kalkyl. Syftet med denna information är att öka förståelsen för kalkylen. Observera att dessa värden används inte automatiskt av kalkylen"]
[null,null,"Antagande","Värde","Enhet","Förklaring"]
[null,null,"Årsarbetstid",{"v":1600,"d":"1,600.00"},"timmar","Beräknad årsarbetstid är uppskattad utifrån antal timmar en helårstjänst kan redovisasa på ett projekt/uppdrag."]
[null,null,"Intern kostnad per timme",{"v":400,"d":"400.00"},"kr","Intern genomsnittlig lönekostnad:  (Månadslön heltid * 12 * 1,5 /1600).  400 kr/h motsvarar en genomsnittslön på cirka 35 000 kr/mån."]

{"sheet":"Ekonomiska nyttor","index":2,"n_rows":25,"n_cols":46,"rows_kept":25,"merged":[[1,8,1,9],[3,8,3,9],[4,25,4,26],[4,29,4,38],[4,40,4,41]]}
[null,null,"EKONOMISKA NYTTOR"]
[null,null,"I den här fliken anger du utvecklingsinsatsens olika budgetpåverkande nyttor",{"$nulls":5},"Prognostiserat värde utan förändring…"]
[]
[{"$nulls":8},"Prognostisera för hela kalkylperioden utifrån antingen estimerat nuvärde eller faktiskt nuvärde"]
[{"$nulls":3},"Ange typ av ekonomiska nyttan","Ange en kortfattad beskrivning av nyttan","Ange för vilken intressent nyttan uppstår. Faller nyttan hos flera aktörer får detta anges i en ny rad per intressent","Ange ansvarig för realisering av nyttan","Detta värde ska periodiseras under kalkylperioden per år","Om faktiskt nuvärde saknas, ange estimerat värde","Ange faktiskt nuvärde om känt","Ange vilket målvärde önskas för indikatorn under hela perioden","Detta värde ska periodiseras under kalkylperioden per år",{"$nulls":13},"Om möjligt estimera ett min- och ett max värde om antaganden blir annat",null,null,"Faktor mellan medelvärde och min/max","Omräkning i TKR för nyttor angivna i timmar",{"$nulls":9},"Summa trolig nytta"]
[null,null,"ID","Nytta","Beskriv den ekonomiska nyttan kortfattat","Var uppstår nyttan?","Nyttorealiseringsansvarig","Enhet","Baserat på estimerat nuvärde","Baserat på faktiskt nuvärde","Prognostiserat målvärde","Nytta som ska periodiseras",null,"Enhet",2020,{"$f":"O6+1","v":2021},{"$f":"P6+1","v":2022},2023,2024,2025,2026,2027,2028,2029,"Summa","Min","Max","Vägt medelvärde","Osäkerhet",{"$f":"O6","v":2020},{"$f":"P6","v":2021},2022,2023,2024,2025,2026,2027,2028,2029,"Summa","Min","Max","Vägt medelvärde","NyttaIntressent",{"$f":"F6","v":"Var uppstår nyttan?"},{"$f":"D6","v":"Nytta"}]
[null,null,1,"Övriga besparingar","Minskade extern kostnad för tryck av pappersenkäter (VHU)","Folkhälsa","Maria Falck (Folkhälsa)","tkr (tusen kronor)",160,null,20,{"$f":"IF(I7=\"\",J7-K7,I7-K7)","v":140},null,{"$f":"H7","v":"tkr (tusen kronor)"},40,140,140,140,140,140,{"$nulls":4},{"$f":"SUM(O7:X7)","v":740},null,null,{"$f":"IF(OR(ISBLANK(Z7),ISBLANK(Y7),ISBLANK(AA7)),\"\",(Z7+AA7+3*Y7)/5)","v":""},{"$f":"IF(OR(ISBLANK(Y7),Y7=0),\"\",(AA7-Z7)/5/Y7)","v":{"v":0,"d":"0%"}},{"$f":"IF($N7=NyttaEnhetInternaTimmar,O7*Internt_värde_per_timme/1000,IF($N7=NyttaEnhetExternaTimmar,O7*Externt_värde_per_timme/1000,O7))","v":40},{"$f":"IF($N7=NyttaEnhetInternaTimmar,P7*Internt_värde_per_timme/1000,IF($N7=NyttaEnhetExternaTimmar,P7*Externt_värde_per_timme/1000,P7))","v":140},{"$f":"IF($N7=NyttaEnhetInternaTimmar,Q7*Internt_värde_per_timme/1000,IF($N7=NyttaEnhetExternaTimmar,Q7*Externt_värde_per_timme/1000,Q7))","v":140},{"$f":"IF($N7=NyttaEnhetInternaTimmar,R7*Internt_värde_per_timme/1000,IF($N7=NyttaEnhetExternaTimmar,R7*Externt_värde_per_timme/1000,R7))","v":140},{"$f":"IF($N7=NyttaEnhetInternaTimmar,S7*Internt_värde_per_timme/1000,IF($N7=NyttaEnhetExternaTimmar,S7*Externt_värde_per_timme/1000,S7))","v":140},{"$f":"IF($N7=NyttaEnhetInternaTimmar,T7*Internt_värde_per_timme/1000,IF($N7=NyttaEnhetExternaTimmar,T7*Externt_värde_per_timme/1000,T7))","v":140},{"$f":"IF($N7=NyttaEnhetInternaTimmar,U7*Internt_värde_per_timme/1000,IF($N7=NyttaEnhetExternaTimmar,U7*Externt_värde_per_timme/1000,U7))","v":0},{"$f":"IF($N7=NyttaEnhetInternaTimmar,V7*Internt_värde_per_timme/1000,IF($N7=NyttaEnhetExternaTimmar,V7*Externt_värde_per_timme/1000,V7))","v":0},{"$f":"IF($N7=NyttaEnhetInternaTimmar,W7*Internt_värde_per_timme/1000,IF($N7=NyttaEnhetExternaTimmar,W7*Externt_värde_per_timme/1000,W7))","v":0},{"$f":"IF($N7=NyttaEnhetInternaTimmar,X7*Internt_värde_per_timme/1000,IF($N7=NyttaEnhetExternaTimmar,X7*Externt_värde_per_timme/1000,X7))","v":0},{"$f":"IF($N7=NyttaEnhetInternaTimmar,Y7*Internt_värde_per_timme/1000,IF($N7=NyttaEnhetExternaTimmar,Y7*Externt_värde_per_timme/1000,Y7))","v":740},{"$f":"IF($N7=NyttaEnhetInternaTimmar,Z7*Internt_värde_per_timme/1000,IF($N7=NyttaEnhetExternaTimmar,Z7*Externt_värde_per_timme/1000,Z7))","v":0},{"$f":"IF($N7=NyttaEnhetInternaTimmar,AA7*Internt_värde_per_timme/1000,IF($N7=NyttaEnhetExternaTimmar,AA7*Externt_värde_per_timme/1000,AA7))","v":0},{"$f":"IF(OR(ISBLANK(AO7),ISBLANK(AN7),ISBLANK(AP7)),\"\",(AO7+AP7+3*AN7)/5)","v":444},{"$f":"AT7 & \" @ \" & AS7","v":"Övriga besparingar @ Folkhälsa"},{"$f":"IF(F7=\"\",\"(blank)\",F7)","v":"Folkhälsa"},{"$f":"IF(D7=\"\",\"(blank)\",D7)","v":"Övriga besparingar"}]
[null,null,2,"Övriga besparingar","Minskade extern kostnad för optisk inläsning (VHU)","Folkhälsa","Maria Falck (Folkhälsa)","tkr (tusen kronor)",105,null,0,{"$f":"IF(I8=\"\",J8-K8,I8-K8)","v":105},null,{"$f":"H8","v":"tkr (tusen kronor)"},30,105,105,105,105,105,{"$nulls":4},{"$f":"SUM(O8:X8)","v":555},null,null,{"$f":"IF(OR(ISBLANK(Z8),ISBLANK(Y8),ISBLANK(AA8)),\"\",(Z8+AA8+3*Y8)/5)","v":""},{"$f":"IF(OR(ISBLANK(Y8),Y8=0),\"\",(AA8-Z8)/5/Y8)","v":{"v":0,"d":"0%"}},30,105,105,105,105,105,0,0,0,0,555,0,0,{"$f":"IF(OR(ISBLANK(AO8),ISBLANK(AN8),ISBLANK(AP8)),\"\",(AO8+AP8+3*AN8)/5)","v":333},{"$f":"AT8 & \" @ \" & AS8","v":"Övriga besparingar @ Folkhälsa"},"Folkhälsa","Övriga besparingar"]
[null,null,3,"Reducerad personalkostnad","Minskad arbetstid på Biobanken Norr för omhändertagande av pappersenkäter (VHU)","Biobanken Norr","Jenny Åkerblom (Biobanken)","Interna timmar",675,null,0,{"$f":"IF(I9=\"\",J9-K9,I9-K9)","v":675},null,"Interna timmar",150,675,675,675,675,675,{"$nulls":4},{"$f":"SUM(O9:X9)","v":{"v":3525,"d":"3,525"}},null,null,{"$f":"IF(OR(ISBLANK(Z9),ISBLANK(Y9),ISBLANK(AA9)),\"\",(Z9+AA9+3*Y9)/5)","v":""},{"$f":"IF(OR(ISBLANK(Y9),Y9=0),\"\",(AA9-Z9)/5/Y9)","v":{"v":0,"d":"0%"}},30,135,135,135,135,135,0,0,0,0,705,0,0,423,"Reducerad personalkostnad @ Biobanken Norr","Biobanken Norr","Reducerad personalkostnad"]
[null,null,4,"Reducerad personalkostnad","Minskat behov att vårdpersonal som scannar in pappersenkäter i NCS Cross (ANOPIVA)","ANOPIVA","Niklas Larsson (ANOPIVA)","Interna timmar",{"v":2500,"d":"2,500"},null,500,{"$f":"IF(I10=\"\",J10-K10,I10-K10)","v":{"v":2000,"d":"2,000"}},null,"Interna timmar",{"v":1000,"d":"1,000"},{"v":2000,"d":"2,000"},{"v":2000,"d":"2,000"},{"v":2000,"d":"2,000"},{"v":2000,"d":"2,000"},{"v":2000,"d":"2,000"},{"$nulls":4},{"$f":"SUM(O10:X10)","v":{"v":11000,"d":"11,000"}},null,null,"",{"v":0,"d":"0%"},200,400,400,400,400,400,0,0,0,0,2200,0,0,1320,"Reducerad personalkostnad @ ANOPIVA","ANOPIVA","Reducerad personalkostnad"]
[null,null,5,"Reducerad personalkostnad","Minskat behov att vårdpersonal manuellt överföra info från hälsodeklarationer till Metavision (ANOPIVA)","ANOPIVA","Niklas Larsson (ANOPIVA)","Interna timmar",{"v":2500,"d":"2,500"},null,500,{"v":2000,"d":"2,000"},null,"Interna timmar",{"v":1000,"d":"1,000"},{"v":2000,"d":"2,000"},{"v":2000,"d":"2,000"},{"v":2000,"d":"2,000"},{"v":2000,"d":"2,000"},{"v":2000,"d":"2,000"},{"$nulls":4},{"v":11000,"d":"11,000"},null,null,"",{"v":0,"d":"0%"},200,400,400,400,400,400,0,0,0,0,2200,0,0,1320,"Reducerad personalkostnad @ ANOPIVA","ANOPIVA","Reducerad personalkostnad"]
[null,null,6,{"$nulls":8},0,null,0,{"$nulls":10},0,null,null,"","",0,0,0,0,0,0,0,0,0,0,0,0,0,0,"(blank) @ (blank)","(blank)","(blank)"]
[null,null,7,{"$nulls":8},0,null,0,{"$nulls":10},0,null,null,"","",0,0,0,0,0,0,0,0,0,0,0,0,0,0,"(blank) @ (blank)","(blank)","(blank)"]
[null,null,8,{"$nulls":8},0,null,0,{"$nulls":10},0,null,null,"","",0,0,0,0,0,0,0,0,0,0,0,0,0,0,"(blank) @ (blank)","(blank)","(blank)"]
[null,null,9,{"$nulls":8},0,null,0,{"$nulls":10},0,null,null,"","",0,0,0,0,0,0,0,0,0,0,0,0,0,0,"(blank) @ (blank)","(blank)","(blank)"]
[null,null,10,{"$nulls":8},0,null,0,{"$nulls":10},0,null,null,"","",0,0,0,0,0,0,0,0,0,0,0,0,0,0,"(blank) @ (blank)","(blank)","(blank)"]
[null,null,11,{"$nulls":8},0,null,0,{"$nulls":10},0,null,null,"","",0,0,0,0,0,0,0,0,0,0,0,0,0,0,"(blank) @ (blank)","(blank)","(blank)"]
[null,null,12,{"$nulls":8},0,null,0,{"$nulls":10},0,null,null,"","",0,0,0,0,0,0,0,0,0,0,0,0,0,0,"(blank) @ (blank)","(blank)","(blank)"]
[null,null,13,{"$nulls":8},0,null,0,{"$nulls":10},0,null,null,"","",0,0,0,0,0,0,0,0,0,0,0,0,0,0,"(blank) @ (blank)","(blank)","(blank)"]
[null,null,14,{"$nulls":8},0,null,0,{"$nulls":10},0,null,null,"","",0,0,0,0,0,0,0,0,0,0,0,0,0,0,"(blank) @ (blank)","(blank)","(blank)"]
[null,null,15,{"$nulls":8},0,null,0,{"$nulls":10},0,null,null,"","",0,0,0,0,0,0,0,0,0,0,0,0,0,0,"(blank) @ (blank)","(blank)","(blank)"]
[{"$nulls":3},"Total nytta (tkr)",{"$f":"AN22","v":{"v":6400,"d":"6,400"}},{"$nulls":22},{"$f":"IF(OR(ISBLANK(Z22),ISBLANK(E22),ISBLANK(AA22)),\"\",(Z22+AA22+3*E22)/5)","v":""},null,{"$f":"SUM(AD7:AD21)","v":500},1180,1180,1180,1180,1180,0,0,0,0,6400,0,0,3840]
[{"$nulls":29},{"$f":"AD22","v":500},{"$f":"AD23+AE22","v":1680},{"$f":"AE23+AF22","v":2860},4040,5220,6400,6400,6400,6400,6400]
[]
[{"$nulls":14}," "]

{"sheet":"Kvalitativa nyttor","index":3,"n_rows":20,"n_cols":30,"rows_kept":20,"merged":[[3,16,3,25]]}
[null,null,"KVALITATIVA NYTTOR"]
[null,null,"I den här fliken anger du förändringsinsatsens olika kvalitativa nyttor samt indikator och enhet. Varje indikatorvärde får även periodiseras för kalkylperioden i syfte att underlätta uppföljningen"]
[]
[{"$nulls":3},"Ange typ av kvalitativ nytta","Ange en kortfattad beskrivning av nyttan","Ange för vilken intressent nyttan uppstår. Faller nyttan hos flera aktörer får detta anges i en ny rad per intressent","Ange ansvarig för realisering av nyttan","Ange med vilken indikator nyttan kommer att mätas","Ange enhet för indikatorn","Om faktiskt nuvärde saknas, ange estimerat värde","Ange faktiskt nuvärde om känt","Ange vilket målvärde önskas för indikatorn under hela perioden",null,"Uppskatta hur stor betydelse nyttan har (relevans jmf mot övriga nyttor)",null,null,"Ange uppskattad indikatorvärde för perioden. Dessa värden påverkar inte kalkylen men kommer att underlätta uppföljningen. Dessa värden blir underlag för nyttohemtagningsregistret samt verksamhetsplanen för respektive år"]
[null,null,"ID","Nytta","Beskriv den kvalitativa nyttan kortfattat","Var uppstår nyttan?","Nyttorealiseringsansvarig","Indikator","Enhet","Estimerat nuvärde","Faktiskt nuvärde","Målvärde","Nyttan som ska periodiseras","Nyttans betydelse","Poäng",null,2020,{"$f":"Q5+1","v":2021},{"$f":"R5+1","v":2022},2023,2024,2025,2026,2027,2028,2029,"Bedömd vikt","NyttaIntressent",{"$f":"F5","v":"Var uppstår nyttan?"},{"$f":"D5","v":"Nytta"}]
[null,null,1,null,"Minskad pappersanvändning, vilket är positivt för miljön (Folkhälsa)",{"$nulls":4},6000,null,400,null,"3: Medium",{"$f":"IFERROR(1*LEFT(N6,FIND(\":\",N6)-1),0)","v":3},{"$nulls":11},{"$f":"O6","v":3},{"$f":"AD6 & \" @ \" & AC6","v":"(blank) @ (blank)"},{"$f":"IF(F6=\"\",\"(blank)\",F6)","v":"(blank)"},{"$f":"IF(D6=\"\",\"(blank)\",D6)","v":"(blank)"}]
[null,null,2,null,"Minskad pappersanvändning, vilket är positivt för miljön (ANOPIVA)",{"$nulls":4},30000,null,6000,null,"3: Medium",{"$f":"IFERROR(1*LEFT(N7,FIND(\":\",N7)-1),0)","v":3},{"$nulls":11},3,{"$f":"AD7 & \" @ \" & AC7","v":"(blank) @ (blank)"},{"$f":"IF(F7=\"\",\"(blank)\",F7)","v":"(blank)"},{"$f":"IF(D7=\"\",\"(blank)\",D7)","v":"(blank)"}]
[null,null,3,null,"Säkrare hantering enkäter (minskad risk att tappa bort enkäter, säker inloggning)",{"$nulls":4},36000,null,6400,null,"3: Medium",3,{"$nulls":11},3,"(blank) @ (blank)","(blank)","(blank)"]
[null,null,4,{"$nulls":11},0,{"$nulls":11},0,"(blank) @ (blank)","(blank)","(blank)"]
[null,null,5,{"$nulls":11},0,{"$nulls":11},0,"(blank) @ (blank)","(blank)","(blank)"]
[null,null,6,{"$nulls":11},0,{"$nulls":11},0,"(blank) @ (blank)","(blank)","(blank)"]
[null,null,7,{"$nulls":11},0,{"$nulls":11},0,"(blank) @ (blank)","(blank)","(blank)"]
[null,null,8,{"$nulls":11},0,{"$nulls":11},0,"(blank) @ (blank)","(blank)","(blank)"]
[null,null,9,{"$nulls":11},0,{"$nulls":11},0,"(blank) @ (blank)","(blank)","(blank)"]
[null,null,10,{"$nulls":11},0,{"$nulls":11},0,"(blank) @ (blank)","(blank)","(blank)"]
[null,null,11,{"$nulls":11},0,{"$nulls":11},0,"(blank) @ (blank)","(blank)","(blank)"]
[null,null,12,{"$nulls":11},0,{"$nulls":11},0,"(blank) @ (blank)","(blank)","(blank)"]
[null,null,13,{"$nulls":11},0,{"$nulls":11},0,"(blank) @ (blank)","(blank)","(blank)"]
[null,null,14,{"$nulls":11},0,{"$nulls":11},0,"(blank) @ (blank)","(blank)","(blank)"]
[null,null,15,{"$nulls":11},0,{"$nulls":11},0,"(blank) @ (blank)","(blank)","(blank)"]

{"sheet":"Kostnader","index":4,"n_rows":22,"n_cols":41,"rows_kept":22,"merged":[[3,8,3,15],[3,19,3,20],[3,23,3,32],[3,34,3,35]]}
[null,null,"KOSTNADER"]
[null,null,"I den här fliken anger du utvecklingsinsatsens olika kostnader."]
[]
[{"$nulls":3},"Ange kostnadstyp","Ange en kortfattad beskrivning av kostnadsposten","Ange för vilken intressent kostnaden uppstår. Uppstår kostnad hos flera aktörer får detta anges i en ny rad per intressent",null,null,"Ange uppskattad kostnad per år (TKR om kostnaden anges i kronor)",{"$nulls":10},"Om möjligt estimera ett min- och ett max värde om antaganden blir annat",null,null,"Faktor mellan medelvärde och min/max","Omräkning i TKR för kostnader angivna i timmar",{"$nulls":9},"Summa trolig kostnad"]
[null,null,"ID","Kostnadstyp","Beskriv kostnaden kortfattat","Var uppstår kostnaden?",null,"Enhet",2020,{"$f":"I5+1","v":2021},{"$f":"J5+1","v":2022},2023,2024,2025,2026,2027,2028,2029,"Summa","Min","Max","Vägt medelv.","Osäkerhet",{"$f":"I5","v":2020},{"$f":"X5+1","v":2021},{"$f":"Y5+1","v":2022},2023,2024,2025,2026,2027,2028,2029,"Summa","Min","Max","Vägt medelv.","Intressent","Beskrivning","Kostnadstyp inkl. blank","Område"]
[null,null,1,"Införande","Anslutningsavgift patientportal (inkorg/avisering i 1177)","VO Digitalisering och medicinsk teknik",null,"tkr (tusen kronor)",{"v":25,"d":"25 "},{"$nulls":9},{"$f":"SUMIFS(I6:R6,I$5:R$5,\">=\" & Grunddata!$D$12,I$5:R$5, \"<\" & Grunddata!$D$12+Grunddata!$D$13)","v":{"v":25,"d":"25 "}},null,null,{"$f":"IF(OR(ISBLANK(T6),ISBLANK(S6),ISBLANK(U6)),\"\",(T6+U6+3*S6)/5)","v":""},{"$f":"IF(OR(ISBLANK(S6),S6=0),\"\",(U6-T6)/5/S6)","v":{"v":0,"d":"0%"}},{"$f":"IF($H6=KostnadEnhetInternaTimmar,I6*Intern_kostnad_per_timme/1000,IF($H6=KostnadEnhetExternaTimmar,I6*Extern_kostnad_per_timme/1000,I6))","v":25},{"$f":"IF($H6=KostnadEnhetInternaTimmar,J6*Intern_kostnad_per_timme/1000,IF($H6=KostnadEnhetExternaTimmar,J6*Extern_kostnad_per_timme/1000,J6))","v":0},0,{"$f":"IF($H6=KostnadEnhetInternaTimmar,L6*Intern_kostnad_per_timme/1000,IF($H6=KostnadEnhetExternaTimmar,L6*Extern_kostnad_per_timme/1000,L6))","v":0},{"$f":"IF($H6=KostnadEnhetInternaTimmar,M6*Intern_kostnad_per_timme/1000,IF($H6=KostnadEnhetExternaTimmar,M6*Extern_kostnad_per_timme/1000,M6))","v":0},{"$f":"IF($H6=KostnadEnhetInternaTimmar,N6*Intern_kostnad_per_timme/1000,IF($H6=KostnadEnhetExternaTimmar,N6*Extern_kostnad_per_timme/1000,N6))","v":0},{"$f":"IF($H6=KostnadEnhetInternaTimmar,O6*Intern_kostnad_per_timme/1000,IF($H6=KostnadEnhetExternaTimmar,O6*Extern_kostnad_per_timme/1000,O6))","v":0},{"$f":"IF($H6=KostnadEnhetInternaTimmar,P6*Intern_kostnad_per_timme/1000,IF($H6=KostnadEnhetExternaTimmar,P6*Extern_kostnad_per_timme/1000,P6))","v":0},{"$f":"IF($H6=KostnadEnhetInternaTimmar,Q6*Intern_kostnad_per_timme/1000,IF($H6=KostnadEnhetExternaTimmar,Q6*Extern_kostnad_per_timme/1000,Q6))","v":0},{"$f":"IF($H6=KostnadEnhetInternaTimmar,R6*Intern_kostnad_per_timme/1000,IF($H6=KostnadEnhetExternaTimmar,R6*Extern_kostnad_per_timme/1000,R6))","v":0},{"$f":"SUM(X6:AG6)","v":25},{"$f":"IF(ISBLANK(T6),$AH6, IF($H6=KostnadEnhetInternaTimmar,T6*Intern_kostnad_per_timme/1000,IF($H6=KostnadEnhetExternaTimmar,T6*Extern_kostnad_per_timme/1000,T6)))","v":25},{"$f":"IF(ISBLANK(U6),$AH6, IF($H6=KostnadEnhetInternaTimmar,U6*Intern_kostnad_per_timme/1000,IF($H6=KostnadEnhetExternaTimmar,U6*Extern_kostnad_per_timme/1000,U6)))","v":25},{"$f":"IF(OR(ISBLANK(AI6),ISBLANK(AH6),ISBLANK(AJ6)),\"\",(AI6+AJ6+3*AH6)/5)","v":25},{"$f":"IF(F6=\"\",\"(blank)\",F6)","v":"VO Digitalisering och medicinsk teknik"},{"$f":"IF(E6=\"\",\"(blank)\",E6)","v":"Anslutningsavgift patientportal (inkorg/avisering i 1177)"},{"$f":"IF(D6=\"\",\"(blank)\",D6)","v":"Införande"},{"$f":"IF(#REF!=\"\",\"(blank)\",#REF!)","v":{"$error":"#REF!"}}]
[null,null,2,"Införande","Utbildning EyeDoc för utvecklare","VO Digitalisering och medicinsk teknik",null,"tkr (tusen kronor)",{"v":55,"d":"55 "},{"$nulls":9},{"$f":"SUMIFS(I7:R7,I$5:R$5,\">=\" & Grunddata!$D$12,I$5:R$5, \"<\" & Grunddata!$D$12+Grunddata!$D$13)","v":{"v":55,"d":"55 "}},null,null,{"$f":"IF(OR(ISBLANK(T7),ISBLANK(S7),ISBLANK(U7)),\"\",(T7+U7+3*S7)/5)","v":""},{"$f":"IF(OR(ISBLANK(S7),S7=0),\"\",(U7-T7)/5/S7)","v":{"v":0,"d":"0%"}},55,0,{"$f":"IF($H7=KostnadEnhetInternaTimmar,K7*Intern_kostnad_per_timme/1000,IF($H7=KostnadEnhetExternaTimmar,K7*Extern_kostnad_per_timme/1000,K7))","v":0},0,0,0,0,0,0,0,{"$f":"SUM(X7:AG7)","v":55},{"$f":"IF(ISBLANK(T7),$S7, IF($H7='-Admin-'!$C$21,T7*Grunddata!$D$15/1000,IF($H7='-Admin-'!$C$22,T7*Grunddata!$D$16/1000,T7)))","v":55},{"$f":"IF(ISBLANK(U7),$S7, IF($H7='-Admin-'!$C$21,U7*Grunddata!$D$15/1000,IF($H7='-Admin-'!$C$22,U7*Grunddata!$D$16/1000,U7)))","v":55},{"$f":"IF(OR(ISBLANK(AI7),ISBLANK(AH7),ISBLANK(AJ7)),\"\",(AI7+AJ7+3*AH7)/5)","v":55},{"$f":"IF(F7=\"\",\"(blank)\",F7)","v":"VO Digitalisering och medicinsk teknik"},"Utbildning EyeDoc för utvecklare","Införande",{"$f":"IF(#REF!=\"\",\"(blank)\",#REF!)","v":{"$error":"#REF!"}}]
[null,null,3,"Införande","Utveckling i Metavision - utökad uthoppsfunktion","VO Digitalisering och medicinsk teknik",null,"Externa Timmar",{"v":40,"d":"40 "},{"$nulls":9},{"$f":"SUMIFS(I8:R8,I$5:R$5,\">=\" & Grunddata!$D$12,I$5:R$5, \"<\" & Grunddata!$D$12+Grunddata!$D$13)","v":{"v":40,"d":"40 "}},null,null,"",{"v":0,"d":"0%"},36,0,0,0,0,0,0,0,0,0,36,{"$f":"IF(ISBLANK(T8),$S8, IF($H8='-Admin-'!$C$21,T8*Grunddata!$D$15/1000,IF($H8='-Admin-'!$C$22,T8*Grunddata!$D$16/1000,T8)))","v":40},{"$f":"IF(ISBLANK(U8),$S8, IF($H8='-Admin-'!$C$21,U8*Grunddata!$D$15/1000,IF($H8='-Admin-'!$C$22,U8*Grunddata!$D$16/1000,U8)))","v":40},37.6,"VO Digitalisering och medicinsk teknik","Utveckling i Metavision - utökad uthoppsfunktion","Införande",{"$f":"IF(#REF!=\"\",\"(blank)\",#REF!)","v":{"$error":"#REF!"}}]
[null,null,4,"Införande","Utveckling i Metavision - integration av patientsvar  ","VO Digitalisering och medicinsk teknik",null,"Externa Timmar",{"v":200,"d":"200 "},{"$nulls":9},{"$f":"SUMIFS(I9:R9,I$5:R$5,\">=\" & Grunddata!$D$12,I$5:R$5, \"<\" & Grunddata!$D$12+Grunddata!$D$13)","v":{"v":200,"d":"200 "}},null,null,"",{"v":0,"d":"0%"},180,0,0,0,0,0,0,0,0,0,180,{"$f":"IF(ISBLANK(T9),$S9, IF($H9='-Admin-'!$C$21,T9*Grunddata!$D$15/1000,IF($H9='-Admin-'!$C$22,T9*Grunddata!$D$16/1000,T9)))","v":200},{"$f":"IF(ISBLANK(U9),$S9, IF($H9='-Admin-'!$C$21,U9*Grunddata!$D$15/1000,IF($H9='-Admin-'!$C$22,U9*Grunddata!$D$16/1000,U9)))","v":200},188,"VO Digitalisering och medicinsk teknik","Utveckling i Metavision - integration av patientsvar  ","Införande",{"$f":"IF(#REF!=\"\",\"(blank)\",#REF!)","v":{"$error":"#REF!"}}]
[null,null,5,"Införande","Utvecklingskostnad av formulär i formulärtjänsten ","VO Digitalisering och medicinsk teknik",null,"tkr (tusen kronor)",{"v":25,"d":"25 "},{"$nulls":9},{"$f":"SUMIFS(I10:R10,I$5:R$5,\">=\" & Grunddata!$D$12,I$5:R$5, \"<\" & Grunddata!$D$12+Grunddata!$D$13)","v":{"v":25,"d":"25 "}},null,null,"",{"v":0,"d":"0%"},25,0,0,0,0,0,0,0,0,0,25,{"$f":"IF(ISBLANK(T10),$S10, IF($H10='-Admin-'!$C$21,T10*Grunddata!$D$15/1000,IF($H10='-Admin-'!$C$22,T10*Grunddata!$D$16/1000,T10)))","v":25},{"$f":"IF(ISBLANK(U10),$S10, IF($H10='-Admin-'!$C$21,U10*Grunddata!$D$15/1000,IF($H10='-Admin-'!$C$22,U10*Grunddata!$D$16/1000,U10)))","v":25},25,"VO Digitalisering och medicinsk teknik","Utvecklingskostnad av formulär i formulärtjänsten ","Införande",{"$f":"IF(#REF!=\"\",\"(blank)\",#REF!)","v":{"$error":"#REF!"}}]
[null,null,6,"Införande","Utveckling av rapportuttag EyeDoc","VO Digitalisering och medicinsk teknik",null,"tkr (tusen kronor)",{"v":35,"d":"35 "},{"$nulls":9},{"$f":"SUMIFS(I11:R11,I$5:R$5,\">=\" & Grunddata!$D$12,I$5:R$5, \"<\" & Grunddata!$D$12+Grunddata!$D$13)","v":{"v":35,"d":"35 "}},null,null,"",{"v":0,"d":"0%"},35,0,0,0,0,0,0,0,0,0,35,{"$f":"IF(ISBLANK(T11),$S11, IF($H11='-Admin-'!$C$21,T11*Grunddata!$D$15/1000,IF($H11='-Admin-'!$C$22,T11*Grunddata!$D$16/1000,T11)))","v":35},{"$f":"IF(ISBLANK(U11),$S11, IF($H11='-Admin-'!$C$21,U11*Grunddata!$D$15/1000,IF($H11='-Admin-'!$C$22,U11*Grunddata!$D$16/1000,U11)))","v":35},35,"VO Digitalisering och medicinsk teknik","Utveckling av rapportuttag EyeDoc","Införande",{"$f":"IF(#REF!=\"\",\"(blank)\",#REF!)","v":{"$error":"#REF!"}}]
[null,null,7,"Drift/Förvaltning","Utskick till 1177 inkorg á 3,1 kr/utskick (6000 + 30.000 enkätutskick)","VO Digitalisering och medicinsk teknik",null,"tkr (tusen kronor)",{"v":0,"d":"0 "},{"v":112,"d":"112 "},{"v":112,"d":"112 "},{"v":112,"d":"112 "},{"v":112,"d":"112 "},{"v":112,"d":"112 "},{"$nulls":4},{"$f":"SUMIFS(I12:R12,I$5:R$5,\">=\" & Grunddata!$D$12,I$5:R$5, \"<\" & Grunddata!$D$12+Grunddata!$D$13)","v":{"v":560,"d":"560 "}},null,null,"",{"v":0,"d":"0%"},0,112,112,112,112,112,0,0,0,0,560,{"$f":"IF(ISBLANK(T12),$S12, IF($H12='-Admin-'!$C$21,T12*Grunddata!$D$15/1000,IF($H12='-Admin-'!$C$22,T12*Grunddata!$D$16/1000,T12)))","v":560},{"$f":"IF(ISBLANK(U12),$S12, IF($H12='-Admin-'!$C$21,U12*Grunddata!$D$15/1000,IF($H12='-Admin-'!$C$22,U12*Grunddata!$D$16/1000,U12)))","v":560},560,"VO Digitalisering och medicinsk teknik","Utskick till 1177 inkorg á 3,1 kr/utskick (6000 + 30.000 enkätutskick)","Drift/Förvaltning",{"$f":"IF(#REF!=\"\",\"(blank)\",#REF!)","v":{"$error":"#REF!"}}]
[null,null,8,{"$nulls":15},{"$f":"SUMIFS(I13:R13,I$5:R$5,\">=\" & Grunddata!$D$12,I$5:R$5, \"<\" & Grunddata!$D$12+Grunddata!$D$13)","v":{"v":0,"d":"0 "}},null,null,"","",0,0,0,0,0,0,0,0,0,0,0,{"$f":"IF(ISBLANK(T13),$S13, IF($H13='-Admin-'!$C$21,T13*Grunddata!$D$15/1000,IF($H13='-Admin-'!$C$22,T13*Grunddata!$D$16/1000,T13)))","v":0},{"$f":"IF(ISBLANK(U13),$S13, IF($H13='-Admin-'!$C$21,U13*Grunddata!$D$15/1000,IF($H13='-Admin-'!$C$22,U13*Grunddata!$D$16/1000,U13)))","v":0},0,"(blank)","(blank)","(blank)",{"$f":"IF(#REF!=\"\",\"(blank)\",#REF!)","v":{"$error":"#REF!"}}]
[null,null,9,{"$nulls":15},{"$f":"SUMIFS(I14:R14,I$5:R$5,\">=\" & Grunddata!$D$12,I$5:R$5, \"<\" & Grunddata!$D$12+Grunddata!$D$13)","v":{"v":0,"d":"0 "}},null,null,"","",0,0,0,0,0,0,0,0,0,0,0,{"$f":"IF(ISBLANK(T14),$S14, IF($H14='-Admin-'!$C$21,T14*Grunddata!$D$15/1000,IF($H14='-Admin-'!$C$22,T14*Grunddata!$D$16/1000,T14)))","v":0},{"$f":"IF(ISBLANK(U14),$S14, IF($H14='-Admin-'!$C$21,U14*Grunddata!$D$15/1000,IF($H14='-Admin-'!$C$22,U14*Grunddata!$D$16/1000,U14)))","v":0},0,"(blank)","(blank)","(blank)",{"$f":"IF(#REF!=\"\",\"(blank)\",#REF!)","v":{"$error":"#REF!"}}]
[null,null,10,{"$nulls":15},{"$f":"SUMIFS(I15:R15,I$5:R$5,\">=\" & Grunddata!$D$12,I$5:R$5, \"<\" & Grunddata!$D$12+Grunddata!$D$13)","v":{"v":0,"d":"0 "}},null,null,"",null,0,0,0,0,0,0,0,0,0,0,{"$f":"SUM(X15:AG15)","v":0},{"$f":"IF(ISBLANK(T15),$S15, IF($H15='-Admin-'!$C$21,T15*Grunddata!$D$15/1000,IF($H15='-Admin-'!$C$22,T15*Grunddata!$D$16/1000,T15)))","v":0},{"$f":"IF(ISBLANK(U15),$S15, IF($H15='-Admin-'!$C$21,U15*Grunddata!$D$15/1000,IF($H15='-Admin-'!$C$22,U15*Grunddata!$D$16/1000,U15)))","v":0},{"$f":"IF(OR(ISBLANK(AI15),ISBLANK(AH15),ISBLANK(AJ15)),\"\",(AI15+AJ15+3*AH15)/5)","v":0},"(blank)","(blank)","(blank)",{"$f":"IF(#REF!=\"\",\"(blank)\",#REF!)","v":{"$error":"#REF!"}}]
[null,null,11,{"$nulls":15},{"$f":"SUMIFS(I16:R16,I$5:R$5,\">=\" & Grunddata!$D$12,I$5:R$5, \"<\" & Grunddata!$D$12+Grunddata!$D$13)","v":{"v":0,"d":"0 "}},null,null,"",null,0,0,0,0,0,0,0,0,0,0,0,{"$f":"IF(ISBLANK(T16),$S16, IF($H16='-Admin-'!$C$21,T16*Grunddata!$D$15/1000,IF($H16='-Admin-'!$C$22,T16*Grunddata!$D$16/1000,T16)))","v":0},{"$f":"IF(ISBLANK(U16),$S16, IF($H16='-Admin-'!$C$21,U16*Grunddata!$D$15/1000,IF($H16='-Admin-'!$C$22,U16*Grunddata!$D$16/1000,U16)))","v":0},0,"(blank)","(blank)","(blank)",{"$f":"IF(#REF!=\"\",\"(blank)\",#REF!)","v":{"$error":"#REF!"}}]
[null,null,12,{"$nulls":15},{"$f":"SUMIFS(I17:R17,I$5:R$5,\">=\" & Grunddata!$D$12,I$5:R$5, \"<\" & Grunddata!$D$12+Grunddata!$D$13)","v":{"v":0,"d":"0 "}},null,null,"",null,0,0,0,0,0,0,0,0,0,0,0,{"$f":"IF(ISBLANK(T17),$S17, IF($H17='-Admin-'!$C$21,T17*Grunddata!$D$15/1000,IF($H17='-Admin-'!$C$22,T17*Grunddata!$D$16/1000,T17)))","v":0},{"$f":"IF(ISBLANK(U17),$S17, IF($H17='-Admin-'!$C$21,U17*Grunddata!$D$15/1000,IF($H17='-Admin-'!$C$22,U17*Grunddata!$D$16/1000,U17)))","v":0},0,"(blank)","(blank)","(blank)",{"$f":"IF(#REF!=\"\",\"(blank)\",#REF!)","v":{"$error":"#REF!"}}]
[null,null,13,{"$nulls":15},{"$f":"SUMIFS(I18:R18,I$5:R$5,\">=\" & Grunddata!$D$12,I$5:R$5, \"<\" & Grunddata!$D$12+Grunddata!$D$13)","v":{"v":0,"d":"0 "}},null,null,"",null,0,0,0,0,0,0,0,0,0,0,0,{"$f":"IF(ISBLANK(T18),$S18, IF($H18='-Admin-'!$C$21,T18*Grunddata!$D$15/1000,IF($H18='-Admin-'!$C$22,T18*Grunddata!$D$16/1000,T18)))","v":0},{"$f":"IF(ISBLANK(U18),$S18, IF($H18='-Admin-'!$C$21,U18*Grunddata!$D$15/1000,IF($H18='-Admin-'!$C$22,U18*Grunddata!$D$16/1000,U18)))","v":0},0,"(blank)","(blank)","(blank)",{"$f":"IF(#REF!=\"\",\"(blank)\",#REF!)","v":{"$error":"#REF!"}}]
[null,null,14,{"$nulls":15},{"$f":"SUMIFS(I19:R19,I$5:R$5,\">=\" & Grunddata!$D$12,I$5:R$5, \"<\" & Grunddata!$D$12+Grunddata!$D$13)","v":{"v":0,"d":"0 "}},null,null,"",null,0,0,0,0,0,0,0,0,0,0,0,{"$f":"IF(ISBLANK(T19),$S19, IF($H19='-Admin-'!$C$21,T19*Grunddata!$D$15/1000,IF($H19='-Admin-'!$C$22,T19*Grunddata!$D$16/1000,T19)))","v":0},{"$f":"IF(ISBLANK(U19),$S19, IF($H19='-Admin-'!$C$21,U19*Grunddata!$D$15/1000,IF($H19='-Admin-'!$C$22,U19*Grunddata!$D$16/1000,U19)))","v":0},0,"(blank)","(blank)","(blank)",{"$f":"IF(#REF!=\"\",\"(blank)\",#REF!)","v":{"$error":"#REF!"}}]
[null,null,15,{"$nulls":15},{"$f":"SUMIFS(I20:R20,I$5:R$5,\">=\" & Grunddata!$D$12,I$5:R$5, \"<\" & Grunddata!$D$12+Grunddata!$D$13)","v":{"v":0,"d":"0 "}},null,null,"","",0,0,0,0,0,0,0,0,0,0,0,{"$f":"IF(ISBLANK(T20),$S20, IF($H20='-Admin-'!$C$21,T20*Grunddata!$D$15/1000,IF($H20='-Admin-'!$C$22,T20*Grunddata!$D$16/1000,T20)))","v":0},{"$f":"IF(ISBLANK(U20),$S20, IF($H20='-Admin-'!$C$21,U20*Grunddata!$D$15/1000,IF($H20='-Admin-'!$C$22,U20*Grunddata!$D$16/1000,U20)))","v":0},0,"(blank)","(blank)","(blank)",{"$f":"IF(#REF!=\"\",\"(blank)\",#REF!)","v":{"$error":"#REF!"}}]
[{"$nulls":17},"Total kostnad (tkr)",{"$f":"SUM($AH$6:$AH$20)","v":916},{"$nulls":4},{"$f":"SUM(X6:X20)","v":356},112,112,112,112,112,0,0,0,0,916,940,940,925.6]
[{"$nulls":23},{"$f":"X21","v":356},{"$f":"X22+Y21","v":468},{"$f":"Y22+Z21","v":580},692,804,916,916,916,916,916]

{"sheet":"Angelägenhet","index":5,"n_rows":39,"n_cols":6,"rows_kept":39,"merged":[[2,7,2,11],[7,2,11,2],[7,4,7,5],[7,8,7,10],[8,4,8,5],[8,8,8,10],[9,4,9,5],[9,8,9,10],[10,4,10,5],[10,8,10,10],[11,4,11,5],[11,8,11,10],[16,2,20,2],[16,4,16,5],[17,4,17,5],[18,4,18,5],[19,4,19,5],[20,4,20,5],[25,2,29,2],[25,4,25,5],[25,8,25,10],[26,4,26,5],[26,8,26,10],[27,4,27,5],[27,8,27,10],[28,4,28,5],[28,8,28,10],[29,4,29,5],[29,8,29,10],[34,2,38,2],[34,4,34,5],[35,4,35,5],[36,4,36,5],[37,4,37,5],[38,4,38,5]]}
[]
[null,null,"ANGELÄGENHET",null,"Sammanslaget värde, angelägenhet",{"$f":"AVERAGE(F6,F15,F24,F33)","v":3.75}]
[null,null,"I den här fliken anger du utvecklingsinsatsens angelägenhet utifrån fyra olika perspektiv. Använd tabellen under varje parameter som stöd. Tabellen beskriver parametern, nivåer, samt förklaring till respektive nivå."]
[]
[null,null,"Parameter","Gör bedömning nedan","Beskriv motiveringen kortfattat","Värde"]
[null,null,"Måluppfyllnad och strategier","4: Hög","Stort regionövergripande behov",{"$f":"IFERROR(1*LEFT(D6,FIND(\":\",D6)-1),0)","v":4}]
[]
[null,null,"Här gör du en bedömning av i vilken utsträckning  som utvecklingsinsatsens avsedda förändring bidrar till att uppnå verksamhetens mål och strategiska inriktining.och efterfrågan.","Mycket hög","Utvecklingsinsatsens avsedda förändring ligger helt i linje med verksamhetens strategiska inriktning och bidrar i mycket hög utsträckning till ett eller flera av verksamhetens mål. Verksamhetens måluppfyllelse är direkt beroende av den förändring som just denna utvecklingsinsats ämnar åstadkomma. "]
[{"$nulls":3},"Högt","Utvecklingsinsatsens avsedda förändring ligger helt i linje med verksamhetens strategiska inriktning och bidrar i hög utsträckning till ett eller flera av verksamhetens mål. Verksamhetens måluppfyllelse är  beroende av den förändring som just denna utvecklingsinsats ämnar åstadkomma."]
[{"$nulls":3},"Medel","Utvecklingsinsatsens avsedda förändring ligger i linje med verksamhetens strategiska inriktning och bidrar  till ett eller flera av verksamhetens mål. Verksamhetens måluppfyllelse är påverkas av den förändring som just denna utvecklingsinsats ämnar åstadkomma."]
[{"$nulls":3},"Låg","Kopplingen mellan utvecklingsinsatsens avsedda förändring och verksamhetens strategiska inriktning är otydlig. Utvecklingsinsatsen bidrar eventuellt och i begränsad utsträckning till verksamhetens mål. Verksamhetens måluppfyllelse är inte direkt beroende av den förändring som just denna utvecklingsinsats ämnar åstadkomma."]
[{"$nulls":3},"Mycket låg","Kopplingen mellan utvecklingsinsatsens avsedda förändring och verksamhetens strategiska inriktning är mycket otydlig alternativt helt okänd. Utvecklingsinsatsen bidrar sannolikt inte alls alternativt i mycket begränsad utsträckning till verksamhetens mål. Verksamhetens måluppfyllelse är inte beroende av den förändring som just denna utvecklingsinsats ämnar åstadkomma."]
[]
[null,null,"Parameter","Gör bedömning nedan","Beskriv motiveringen kortfattat","Värde"]
[null,null,"Politisk angelägenhet","4: Hög","Hållbar ekonomi",{"$f":"IFERROR(1*LEFT(D15,FIND(\":\",D15)-1),0)","v":4}]
[]
[null,null,"Här gör du en bedömning av i vilken utsträckning som utvecklingsinsatsens avsedda förändring kopplar an till och bidrar till regeringens mål och visioner (som är relevanta för utvecklingsinsatsen), alternativt mål uttryckta i instruktioner, regleringsbrev etc.","Mycket hög","Utvecklingsinsatsens avsedda förändring kopplar an på ett väldigt tydligt sätt till flera politiska mål (eller visioner), alternativt bidrar i mycket hög utsträckning till mål uttryckta i intruktioner, regleringsbrev etc. "]
[{"$nulls":3},"Högt","Utvecklingsinsatsens avsedda förändring kopplar an på ett tydligt sätt till ett eller flera politiska mål (eller visioner), alternativt bidrar i hög utsträckning till mål uttryckta i intruktioner, regleringsbrev etc. "]
[{"$nulls":3},"Medel","Utvecklingsinsatsens avsedda förändring kopplar an till ett eller flera politiska mål (eller visioner), alternativt bidrar till mål uttryckta i intruktioner, regleringsbrev etc. "]
[{"$nulls":3},"Låg","Utvecklingsinsatsens avsedda förändring har svag koppling till de huvudsakligt berörda politiska målen (eller visionerna), alternativt  bidrar i begränsad utsträckning till mål uttryckta i intruktioner, regleringsbrev etc. "]
[{"$nulls":3},"Mycket låg","Utvecklingsinsatsens avsedda förändring har en mycket svag koppling till de huvudsakligt berörda politiska målen (eller visionerna), alternativt  bidrar i mycket begränsad utsträckning till mål uttryckta i intruktioner, regleringsbrev etc. "]
[]
[null,null,"Parameter","Gör bedömning nedan","Beskriv motiveringen kortfattat","Värde"]
[null,null,"Teknisk angelägenhet","3: Medel",null,{"$f":"IFERROR(1*LEFT(D24,FIND(\":\",D24)-1),0)","v":3}]
[]
[null,null,"Här gör du en bedömning av i vilken utsträckning som den tekniska situationen (en alltmer föråldrad teknik, upphörande support etc.) förutsätter eller kräver den förändring som utvecklingsinsatsen avser att åstadkomma. ","Mycket hög","Utan den förändring som utvecklingsinsatsen avser att åstadkomma kommer flera verksamhetskritiska delar av den it-tekniska miljön sluta fungera helt inom kort. Möjligheterna till verksamhetsutveckling med stöd av it omöjliggörs."]
[{"$nulls":3},"Högt","Utan den förändring som utvecklingsinsatsen avser att åstadkomma kommer en eller flera verksamhetsmässigt viktiga delar av den it-tekniska miljön sluta fungera helt inom kort. Möjligheterna till verksamhetsutveckling med stöd av it försämras avsevärt."]
[{"$nulls":3},"Medel","Utan den förändring som utvecklingsinsatsen avser att åstadkomma kommer en eller flera verksamhetsmässigt viktiga delar av den it-tekniska miljön att fungera bristfälligt. Möjligheterna till verksamhetsutveckling med stöd av it försämras. "]
[{"$nulls":3},"Låg","Verksamhetskritiska eller verksamhetsmässigt viktiga delar av den it-tekniska miljön kommer till stor del att behålla acceptabel funktionalitet, oavsett om utvecklingsinsatsen genomförs eller inte. Möjligheterna till verksamhetsutveckling påverkas inte nämnvärt. "]
[{"$nulls":3},"Mycket låg","Verksamhetskritiska eller verksamhetsmässigt viktiga delar av den it-tekniska miljön kommer helt att behålla acceptabel funktionalitet, oavsett om utvecklingsinsatsen genomförs eller inte. Möjligheterna till verksamhetsutveckling påverkas inte alls. "]
[]
[null,null,"Parameter","Gör bedömning nedan","Beskriv motiveringen kortfattat","Värde"]
[null,null,"Efterfrågan inom organisationen","4: Hög",null,4]
[]
[null,null,"Här gör du en bedömning av i vilken utsträckning  som organisationen/medarbetarna efterfrågar den förändring som utvecklingsinsatsen avser åstadkomma, samt i vilken grad utvecklingsinsatsen påverkar verksamhetens utvecklingspotential. ","Mycket hög","Organisationens/medarbetarnas efterfrågan på den förändring som utvecklingsinsatsen avser åstadkomma är mycket stor, alternativt verksamheten går miste om en mycket stor utvecklingspotential om utvecklingsinsatsen inte genomförs. "]
[{"$nulls":3},"Högt","Organisationens/medarbetarnas efterfrågan på den förändring som utvecklingsinsatsen avser åstadkomma är stor, alternativt verksamheten går miste om en stor utvecklingspotential om utvecklingsinsatsen inte genomförs. "]
[{"$nulls":3},"Medel","Organisationen/medarbetarna efterfrågar den förändring som utvecklingsinsatsen avser åstadkomma, alternativt verksamheten går miste om viss utvecklingspotential om utvecklingsinsatsen inte genomförs. "]
[{"$nulls":3},"Låg","Organisationens/medarbetarnas efterfrågan på den förändring som utvecklingsinsatsen avser åstadkomma är liten, alternativt verksamhetens utvecklingspotential är i princip oförändrad även om utvecklingsinsatsen genomförs. "]
[{"$nulls":3},"Mycket låg","Organisationens/medarbetarnas efterfrgan på den förändring som utvecklingsinsatsen avser åstadkomma är mycket liten, alternativt verksamhetens utvecklingspotential förblir oförändrad eller begränsasom utvecklingsinsatsen genomförs"]

{"sheet":"Genomförbarhet","index":6,"n_rows":98,"n_cols":14,"rows_kept":98,"merged":[[4,8,4,12],[5,8,5,12],[6,7,7,7],[6,8,7,12],[6,13,7,13],[7,2,11,2],[7,4,7,5],[8,4,8,5],[8,8,8,12],[9,4,9,5],[9,8,9,12],[10,4,10,5],[10,7,11,7],[10,8,11,12],[10,13,11,13],[11,4,11,5],[12,8,12,12],[13,8,13,12],[14,8,14,12],[15,7,16,7],[15,8,16,12],[15,13,16,13],[16,2,20,2],[16,4,16,5],[17,4,17,5],[17,8,17,12],[18,4,18,5],[18,8,18,12],[19,4,19,5],[20,4,20,5],[22,8,22,12],[23,8,23,12],[25,2,29,2],[25,4,25,5],[26,4,26,5],[27,4,27,5],[28,4,28,5],[29,4,29,5],[31,8,31,12],[32,8,32,12],[34,2,38,2],[34,4,34,5],[36,4,36,5],[37,4,37,5],[38,4,38,5],[39,3,39,5],[40,8,40,12],[41,8,41,12],[43,2,47,2],[43,4,43,5],[44,4,44,5],[45,4,45,5],[46,4,46,5],[47,4,47,5],[49,8,49,12],[50,8,50,12],[52,2,56,2],[52,4,52,5],[53,4,53,5],[54,4,54,5],[55,4,55,5],[56,4,56,5],[58,8,58,12],[59,8,59,12],[61,2,65,2],[61,4,61,5],[62,4,62,5],[63,4,63,5],[64,4,64,5],[65,4,65,5],[67,8,67,12],[68,8,68,12],[70,2,74,2],[70,4,70,5],[71,4,71,5],[72,4,72,5],[73,4,73,5],[74,4,74,5],[76,8,76,12],[77,8,77,12],[79,2,83,2],[79,4,79,5],[80,4,80,5],[81,4,81,5],[82,4,82,5],[83,4,83,5],[85,8,85,12],[86,8,86,12],[88,2,92,2],[88,4,88,5],[89,4,89,5],[90,4,90,5],[91,4,91,5],[92,4,92,5],[93,3,93,5],[94,2,94,4],[94,8,94,12],[95,2,95,4],[96,2,96,5],[97,2,97,5],[98,2,102,2],[98,4,98,5],[99,4,99,5],[100,4,100,5],[101,4,101,5],[102,4,102,5],[103,3,103,5],[106,3,106,5],[107,3,107,5],[108,3,108,5],[109,3,109,5],[110,3,110,5],[111,2,111,4],[114,3,114,5],[115,3,115,5],[116,3,116,5],[117,3,117,5],[118,3,118,5],[119,2,119,4],[122,3,122,5],[123,3,123,5],[124,3,124,5],[125,3,125,5],[126,3,126,5],[127,2,127,4],[130,3,130,5],[131,3,131,5],[132,3,132,5],[133,3,133,5],[134,3,134,5],[135,2,135,4],[138,3,138,5],[139,3,139,5],[140,3,140,5],[141,3,141,5],[142,3,142,5],[143,2,143,4],[146,3,146,5],[147,3,147,5],[148,3,148,5],[149,3,149,5],[150,3,150,5],[151,2,151,4],[154,3,154,5],[155,3,155,5],[156,3,156,5],[157,3,157,5],[158,3,158,5],[159,2,159,4],[162,3,162,5],[163,3,163,5],[164,3,164,5],[165,3,165,5],[166,3,166,5],[167,2,167,4],[170,3,170,5],[171,3,171,5],[172,3,172,5],[173,3,173,5],[174,3,174,5],[175,2,175,4]]}
[null,null,"GENOMFÖRBARHET",null,"Sammandlaget värde genomförbarhet",{"$f":"IFERROR(AVERAGEIF((N6:N19),\">0\"),0)","v":3.4}]
[]
[null,null,"I den här fliken anger du utvecklingsinsatsens genomförbarhet utifrån elva olika perspektiv. Använd tabellen under varje parameter som stöd. Tabellen beskriver parametern, nivåer, samt förklaring till respektive nivå.",{"$nulls":5},"Värdelista"]
[]
[null,null,"Parameter","Gör bedömning nedan","Beskriv motiveringen kortfattat","Värde",null,null,"Parameter",{"$nulls":4},"Värde"]
[null,null,"Antal involverade/berörda intressenter","2: Hög",null,{"$f":"IFERROR(1*LEFT(D6,FIND(\":\",D6)-1),\"\")","v":2},null,1,{"$f":"C6","v":"Antal involverade/berörda intressenter"},{"$nulls":4},{"$f":"F6","v":2}]
[{"$nulls":7},2,{"$f":"C15","v":"Antal berörda användare"},{"$nulls":4},{"$f":"F15","v":3}]
[null,null,"Här gör du en bedömning av i vilken utsträckning antalet involverade och/eller berörda aktörer/intressenter påverkar utvecklingsinsatsens genomförbarhet.","Mycket hög","Många  olika aktörer (organisationer) är involverade i genomförandet av utvecklingsinsatsen, alternativt den förändring som utvecklingsinsatsen avser åstadkomma berör ett mycket stort antal intressenter. Antalet involverade aktörer och/eller berörda intressenter påverkar utvecklingsinsatsens genomförbarhet i mycket hög grad.  "]
[{"$nulls":3},"Hög","Fler än en aktör (organisationer) är involverade i genomförandet av utvecklingsinsatsen, alternativt den förändring som utvecklingsinsatsen avser åstadkomma berör ett stort antal intressenter. Antalet involverade aktörer och/eller berörda intressenter påverkar utvecklingsinsatsens genomförbarhet i  hög grad.  ",null,null,3,{"$f":"C24","v":"Förmåga hos berörda användare"},{"$nulls":4},{"$f":"F24","v":3}]
[{"$nulls":3},"Medium","Fler än en aktör (organisationer) är involverade i genomförandet av utvecklingsinsatsen, alternativt den förändring som utvecklingsinsatsen avser åstadkomma berör flera intressenter. Antalet involverade aktörer och/eller berörda intressenter påverkar till viss del utvecklingsinsatsens genomförbarhet.  ",null,null,4,{"$f":"C33","v":"Mottaglighet hos berörda användare"},{"$nulls":4},{"$f":"F33","v":4}]
[{"$nulls":3},"Låg","En aktör (organisation) genomför utvecklingsinsatsen, alternativt den förändring som utvecklingsinsatsen avser åstadkomma berör ett begränsat antal intressenter. Antalet involverade aktörer och/eller berörda intressenter påverkar inte nämnvärt utvecklingsinsatsens genomförbarhet. ",null,null,5,{"$f":"C42","v":"Projekt-och programstyrning"},{"$nulls":4},{"$f":"F42","v":4}]
[{"$nulls":3},"Mycket låg","En aktör (organisation) genomför utvecklingsinsatsen, alternativt den förändring som utvecklingsinsatsen avser åstadkomma berör ett mycket begränsat antal intressenter. Antalet involverade aktörer och/eller berörda intressenter påverkar inte alls utvecklingsinsatsens genomförbarhet."]
[{"$nulls":7},6,{"$f":"C51","v":"Teknisk komplexitet"},{"$nulls":4},{"$f":"F51","v":3}]
[null,null,"Parameter","Gör bedömning nedan","Beskriv motiveringen kortfattat","Värde",null,7,{"$f":"C60","v":"Tillgång till teknisk kompetens"},{"$nulls":4},{"$f":"F60","v":3}]
[null,null,"Antal berörda användare","3: Medel",null,{"$f":"IFERROR(1*LEFT(D15,FIND(\":\",D15)-1),\"\")","v":3},null,8,{"$f":"C69","v":"Tillgång till resurser"},{"$nulls":4},{"$f":"F69","v":4}]
[{"$nulls":7},9,{"$f":"C78","v":"Juridiska förutsättningar"},{"$nulls":4},{"$f":"F78","v":5}]
[null,null,"Här gör du en bedömning av i vilken utsträckning antalet berörda användare (kunder) påverkar utvecklingsinsatsens genomförbarhet. ","Mycket hög","Ett mycket stort antal användare berörs av den förändring som utvecklingsinsatsen avser åstadkomma. Antalet berörda användare påverkar utvecklingsinsatsens genomförbarhet i mycket hög grad."]
[{"$nulls":3},"Hög","Ett stort antal användare berörs av den förändring som utvecklingsinsatsen avser åstadkomma. Antalet berörda användare påverkar utvecklingsinsatsens genomförbarhet i hög grad.",null,null,10,{"$f":"C87","v":"Finansiering"},{"$nulls":4},{"$f":"F87","v":3}]
[{"$nulls":3},"Medium","Flera användare berörs av den förändring som utvecklingsinsatsen avser åstadkomma. Antalet berörda användare påverkar till viss del utvecklingsinsatsens genomförbarhet.",null,null,11,{"$f":"C96","v":"Sammantagen bedömning av rikser och hinder"},{"$nulls":4},{"$f":"F96","v":""}]
[{"$nulls":3},"Låg","Ett begränsat antal användare berörs av den förändring som utvecklingsinsatsen avser åstadkomma. Antalet berörda användare påverkar inte nämnvärt utvecklingsinsatsens genomförbarhet."]
[{"$nulls":3},"Mycket låg","Ett mycket begränsat antal användare berörs av den förändring som utvecklingsinsatsen avser åstadkomma. Antalet berörda användare påverkar inte alls utvecklingsinsatsens genomförbarhet."]
[]
[null,null,"Parameter","Gör bedömning nedan","Beskriv motiveringen kortfattat","Värde"]
[null,null,"Förmåga hos berörda användare","3: Medel",null,{"$f":"IFERROR(1*LEFT(D24,FIND(\":\",D24)-1),\"\")","v":3}]
[]
[null,null,"Här gör du en bedömning av i vilken utsträckning förmågan (kunskapsnivå) hos de berörda användarna påverkar utvecklingsinsatsens genomförbarhet.","Mycket hög","Förmågan hos de berörda användarna att ta till sig och nyttja de förändringar som utvecklingsinsatsen avser åstadkomma är mycket god. Det finns inget behov av utbildningsinsatser. "]
[{"$nulls":3},"Hög","Förmågan hos de berörda användarna att ta till sig och nyttja de förändringar som utvecklingsinsatsen avser åstadkomma är god. Det finns ett mycket litet behov av utbildningsinsatser. "]
[{"$nulls":3},"Medium","Förmågan hos de berörda användarna att ta till sig och nyttja de förändringar som utvecklingsinsatsen avser åstadkomma är delvis god. Det finns ett visst behov av utbildningsinsatser. "]
[{"$nulls":3},"Låg","Förmågan hos de berörda användarna att ta till sig och nyttja de förändringar som utvecklingsinsatsen avser åstadkomma är bristfällig. Det finns ett tydligt behov av utbildningsinsatser. "]
[{"$nulls":3},"Mycket låg","Förmågan hos de berörda användarna att ta till sig och nyttja de förändringar som utvecklingsinsatsen avser åstadkomma är mycket bristfällig. Det finns ett tydligt behov av mer omfattande utbildningsinsatser. "]
[]
[null,null,"Parameter","Gör bedömning nedan","Beskriv motiveringen kortfattat","Värde"]
[null,null,"Mottaglighet hos berörda användare","4: Hög",null,{"$f":"IFERROR(1*LEFT(D33,FIND(\":\",D33)-1),\"\")","v":4}]
[]
[null,null,"Här gör du en bedömning av i vilken utsträckning mottagligheten hos de berörda användarna/intressenterna påverkar utvecklingsinsatsens genomförbarhet. ","Mycket hög","Mottagligheten hos de berörda användarna/intressenterna för de förändringar som utvecklingsinsatsen avser åstadkomma ärmycket hög."]
[{"$nulls":3},"Hög","Mottagligheten hos de berörda användarna/intressenterna för de förändringar som utvecklingsinsatsen avser åstadkomma är hög."]
[{"$nulls":3},"Medium","De berörda användarna/intressenterna är varken positiva eller negativa till de  förändringar som utvecklingsinsatsen avser åstadkomma"]
[{"$nulls":3},"Låg","Mottagligheten hos de berörda användarna/intressenterna för de förändringar som utvecklingsinsatsen avser åstadkomma är svag."]
[{"$nulls":3},"Mycket låg","Mottagligheten hos de berörda användarna/intressenterna för de förändringar som utvecklingsinsatsen avser åstadkomma är mycket svag."]
[]
[null,null,"Parameter","Gör bedömning nedan","Beskriv motiveringen kortfattat","Värde"]
[null,null,"Projekt-och programstyrning","4: Hög",null,{"$f":"IFERROR(1*LEFT(D42,FIND(\":\",D42)-1),\"\")","v":4}]
[]
[null,null,"Här gör du en bedömning av hur pass etablerat projekt- och programstyrning är i organisationen, av hur pass systematiskt och effektivt den tillämpas för att åstadkomma avsedda resultat med utvecklingsinsatser, samt av i vilken utsträckning detta påverkar utvecklingsinsatsens genomförbarhet. ","Mycket hög","Projekt- och programstyrning är mycket väl etablerat i organisationen och används systematiskt och på ett effektivt sätt vid genomförande av utvecklingsinsatser. Organisationen präglas av en kultur där det är helt naturligt att tillämpa projekt- och programstyrning för att nå avsedda resultat. "]
[{"$nulls":3},"Hög","Projekt- och programstyrning är etablerat i organisationen och används, i stora delar, på ett systematiskt och effektivt sätt vid genomförande av utvecklingsinsatser. Organisationen präglas av en kultur där det är naturligt att tillämpa projekt- och programstyrning för att nå avsedda resultat. "]
[{"$nulls":3},"Medel","Projekt- och programstyrning är delvis etablerat i organisationen och används endast sporadiskt vid genomförande av utvecklingsinsatser. Organisationen har en kultur där det, i vissa sammanhang, ses som en fördel att tillämpa projekt- och programstyrning för att nå avsedda resultat. "]
[{"$nulls":3},"Låg","Projekt- och programstyrning är inte etablerat i organisationen och används mycket sällan vid genomförande av utvecklingsinsatser. Organisationen har en kultur där det inte ses som en fördel att tillämpa projekt- och programstyrning för att nå avsedda resultat. "]
[{"$nulls":3},"Mycket låg","Projekt- och programstyrning existerar inte i organisationen.  "]
[]
[null,null,"Parameter","Gör bedömning nedan","Beskriv motiveringen kortfattat","Värde"]
[null,null,"Teknisk komplexitet","3: Medel",null,{"$f":"IFERROR(1*LEFT(D51,FIND(\":\",D51)-1),\"\")","v":3}]
[]
[null,null,"Här gör du en bedömning av i vilken utsträckning den tekniska komplexiteten, kopplat till den lösning som utvecklingsinsatsen avser att ta fram, påverkar utvecklingsinsatsens genomförbarhet. ","Mycket hög","Den förändring som utvecklingsinsatsen avser åstadkomma förutsätter en mycket komplex teknisk lösning. Exempelvis, strävan efter den avsedda förändringen förutsätter att utvecklingsinsatsen ger sig i kast med ett tekniskt område som tidigare varit helt främmande för organisationen, alternativt att lösningen ställer mycket höga krav på integration mellan flera olika system."]
[{"$nulls":3},"Hög","Den förändring som utvecklingsinsatsen avser åstadkomma förutsätter en komplex teknisk lösning. Exempelvis, strävan efter den avsedda förändringen förutsätter att utvecklingsinsatsen ger sig i kast med ett relativt nytt tekniskt område för organisationen, alternativt att lösningen ställer höga krav på integration mellan olika system. "]
[{"$nulls":3},"Medel","Den förändring som utvecklingsinsatsen avser åstadkomma förutsätter en delvis komplex teknisk lösning. Exempelvis, strävan efter den avsedda förändringen förutsätter att utvecklingsinsatsen ger sig i kast med ett tekniskt område som är känt för organisationen, alternativt att lösningen ställer  krav på integration mellan olika system. "]
[{"$nulls":3},"Låg","Den förändring som utvecklingsinsatsen avser åstadkomma förutsätter en teknisk lösning som inte är komplex, alternativt komplex enbart i mindre betydelsefulla avseenden. Exempelvis, strävan efter den avsedda förändringen förutsätter att utvecklingsinsatsen ger sig i kast med ett tekniskt område som är välkänt för organisationen, alternativt att lösningen ställer låga krav på integration mellan olika system. "]
[{"$nulls":3},"Mycket låg","Den förändring som utvecklingsinsatsen avser åstadkomma förutsätter en teknisk lösning som inte alls är komplex. Exempelvis, strävan efter den avsedda förändringen förutsätter att utvecklingsinsatsen ger sig i kast med ett tekniskt område som är \"vardagsmat\" för organisationen, alternativt att lösningen ställer mycket låga krav på integration mellan olika system. "]
[]
[null,null,"Parameter","Gör bedömning nedan","Beskriv motiveringen kortfattat","Värde"]
[null,null,"Tillgång till teknisk kompetens","3: Medel",null,{"$f":"IFERROR(1*LEFT(D60,FIND(\":\",D60)-1),\"\")","v":3}]
[]
[null,null,"Här gör du en bedömning av i vilken utsträckning tillgången till teknisk kompetens (med avseende på den tekniska lösning som utvecklingsinsatens avsedda resultat förutsätter) påverkar utvecklingsinsatsens genomförbarhet. ","Mycket hög","Personella resurser som har spetskompetens inom det aktuella tekniska området finns mycket lättillgängliga, såväl internt i organisationen som på konsultmarknaden. "]
[{"$nulls":3},"Hög","Personella resurser som har kompetens inom det aktuella tekniska området finns lättillgängliga, såväl internt i organisationen som på konsultmarknaden. "]
[{"$nulls":3},"Medel","Internt i organisationen finns några personella resurser som har kompetens inom det aktuella tekniska området, men de är tillgängliga endast i viss utsträckning. På konsultmarknaden är dock tillgängligheten god vad gäller kompetens inom det aktuella tekniska området.  "]
[{"$nulls":3},"Låg","Internt i organisationen finns få personella resurser som har kompetens inom det aktuella tekniska området, men de är tillgängliga endast i mycket begränsad utsträckning. På konsultmarknaden är tillgängligheten bristfällig vad gäller kompetens inom det aktuella tekniska området.  "]
[{"$nulls":3},"Mycket låg","Internt i organisationen saknas personella resurser som har kompetens inom det aktuella tekniska området. På konsultmarknaden är tillgängligheten mycket bristfällig vad gäller kompetens inom det aktuella tekniska området.  "]
[]
[null,null,"Parameter","Gör bedömning nedan","Beskriv motiveringen kortfattat","Värde"]
[null,null,"Tillgång till resurser","4: Hög",null,{"$f":"IFERROR(1*LEFT(D69,FIND(\":\",D69)-1),\"\")","v":4}]
[]
[null,null,"Här gör du en bedömning av i vilken utsträckning tillgången till resurser i form av personal och deras tillgängliga tid påverkar utvecklingsinsatsens genomförbarhet.","Mycket hög","Tillgången till personella resurser inom organisationen, som kan bidra till att åstadkomma utvecklingsinsatsens avsedda förändring, är mycket god. Dessa personella resurser har gott om tillgänglig tid till att kunna bidra. "]
[{"$nulls":3},"Hög","Tillgången till personella resurser inom organisationen, som kan bidra till att åstadkomma utvecklingsinsatsens avsedda förändring, är god. Dessa personella resurser har tillgänglig tid till att kunna bidra. "]
[{"$nulls":3},"Medel","Tillgången till personella resurser inom organisationen, som kan bidra till att åstadkomma utvecklingsinsatsens avsedda förändring, är delvis god. Dessa personella resurser har viss tillgänglig tid till att kunna bidra. "]
[{"$nulls":3},"Låg","Tillgången till personella resurser inom organisationen, som kan bidra till att åstadkomma utvecklingsinsatsens avsedda förändring, är begränsad. Dessa personella resurser har ont om tillgänglig tid till att kunna bidra. "]
[{"$nulls":3},"Mycket låg","Tillgången till personella resurser inom organisationen, som kan bidra till att åstadkomma utvecklingsinsatsens avsedda förändring, är mycket begränsad. Dessa personella resurser har, i allt väsentligt, ingen tillgänglig tid alls, till att kunna bidra. "]
[]
[null,null,"Parameter","Gör bedömning nedan","Beskriv motiveringen kortfattat","Värde"]
[null,null,"Juridiska förutsättningar","5: Mycket hög",null,{"$f":"IFERROR(1*LEFT(D78,FIND(\":\",D78)-1),\"\")","v":5}]
[]
[null,null,"Här gör du en bedömning av i vilken utsträckning lagar och regler påverkar utvecklingsinsatsens genomförbarhet.","Mycket hög","De juridiska förutsättningarna är tydligt kartlagda, och det finns inga juridiska hinder för att åstadkomma utvecklingsinsatsens avsedda förändring."]
[{"$nulls":3},"Hög","De juridiska förutsättningarna är kartlagda. Det finns enbart något enstaka juridiskt hinder för att åstadkomma utvecklingsinsatsens avsedda förändring. Dessa hinder förväntas kunna överbryggas på ett enkelt sätt."]
[{"$nulls":3},"Medel","Det finns kännedom om de juridiska förutsättningarna. Det finns ett eller flera juridiska hinder för att åstadkomma utvecklingsinsatsens avsedda förändring. Dessa hinder är inte helt oproblematiska, men förväntas likväl kunna överbryggas. "]
[{"$nulls":3},"Låg","Kännedomen om de juridiska förutsättningarna är bristfällig, alternativt det finns ett eller flera juridiska hinder för att åstadkomma utvecklingsinsatsens avsedda förändring (som förväntas bli svåra att överbrygga). "]
[{"$nulls":3},"Mycket låg","Det saknas helt kännedom om de juridiska förutsättningarna, alternativt det finns flera juridiska hinder för att åstadkomma utvecklingsinsatsens avsedda förändring. Dessa hinder kan inte överbryggas. "]
[]
[null,null,"Parameter","Gör bedömning nedan","Beskriv motiveringen kortfattat","Värde"]
[null,null,"Finansiering","3: Medel",null,{"$f":"IFERROR(1*LEFT(D87,FIND(\":\",D87)-1),\"\")","v":3}]
[]
[null,null,"Här gör du en bedömning av i vilken utsträckning finansieringen av utvecklingsinsatsen påverkar dess genomförbarhet.","Mycket hög"]
[{"$nulls":3},"Hög","Finansieringen är klar för hela projekt-/utvecklingsarbetet och preliminärt för införandet "]
[{"$nulls":3},"Medel","Finansieringen är godkänd för hela projektet men tilldelning sker på årsbasis"]
[{"$nulls":3},"Låg","Finansieringen är inte helt klar men det finns positiva utsikter"]
[{"$nulls":3},"Mycket låg","Finansieringen är inte klar "]
[]
[null,null,"Parameter",null,null,"Värde"]
[null,null,"Sammantagen bedömning av rikser och hinder",null,null,{"$f":"IFERROR(1*LEFT('Risk- & Hinderanalys'!E29,FIND(\":\",'Risk- & Hinderanalys'!E29)-1),\"\")","v":""}]
[]
[null,null,"Värdet baseras på den bedömning som är gjort i fliken Hinderanalys och fylls i automatiskt när risk- & hinderanalysfliken har fyllts i"]

{"sheet":"Risk- & Hinderanalys","index":7,"n_rows":31,"n_cols":9,"rows_kept":31,"merged":[[1,4,1,13]]}
[null,null,"RISK- OCH HINDERANALYS",null,"Denna risk- och hinderanalys utgör en del av genomförbarhetsanalysen. Risk- och hinderanalysen syftar till att fånga risker och hinder kopplat till strävan efter att åstadkomma utvecklingsinsatsens avseedda förändringar."]
[{"$nulls":4},"Har riskanalysen genomförts tidigare i en annan mall, behöver inte enskilda risker redovisas i tabellen. I sådana fall, ska den riskanalysen bifogas business case.et. Däremot behöver man fylla i den sammantagna bedömningen av risker och hinder längst ned, under tabellen."]
[{"$nulls":4},"En sammantagen bedömning av risker och hinder görs för att få fram ett värde till parameter 11 (\"Sammantagen bedömning av risker och hinder\") i genomförbarhetsanalysen, vilket påverkar det summerade värdet för genomförbarhetsanalysen."]
[]
[{"$nulls":3},"Beskriv kortfattat risken eller hindret","Ange sannolikheten att risken inträffar/hindret uppstår","Beskriv konsekvensen av att risken inträffar/hindret uppstår","Ange vilken kategori som kan beskriva konsekvensen/risken bäst","Ange hur allvarlig konsekvensen av att risken inträffar/hindret uppstår är för utvecklingsinsatsen"]
[null,null,"ID","Risk och/eller hinder","Sannolikhet","Konsekvens","Konsekvenskategori","Konsekvens","Riskvärde"]
[null,null,1,"Patienten saknar bankid för inloggning på 1177 (86% av befolkningen har bankid)","2: Låg","Patienten kan ej svara på enkät på 1177. Främst ett problem bland ungdomar och äldre över 70 år. Finns möjlighet att skaffa Freija eID+ för inloggning. ","Hindrar nyttohemtagningen","3: Hög",{"$f":"IFERROR(LEFT(E7,FIND(\":\",E7)-1)*LEFT(H7,FIND(\":\",H7)-1),\"\")","v":6}]
[null,null,2,"Patienten har inte aktiverat avisering (SMS/e-post) för 1177 inkorgen (70% av befolkningen i Västerbotten har aktivt konto, ca 55% av dessa har avisering)","3: Hög","Alla patienter får inte avisering om att det finns en patientenkät att besvara på 1177. Avisering behöver ske på annat sätt.","Hindrar nyttohemtagningen","2: Låg",{"$f":"IFERROR(LEFT(E8,FIND(\":\",E8)-1)*LEFT(H8,FIND(\":\",H8)-1),\"\")","v":6}]
[null,null,3,"Begränsad möjlighet för ungdomar 13-17 år att skaffa bankid (olika banker har olika regler, \n67% av ungdomar i detta åldersintervall har bankid)","3: Hög","Patienten kan ej svara på enkät på 1177 med BankID. Finns möjlighet att skaffa Freija eID+ för dessa ungdomar. ","Hindrar nyttohemtagningen","3: Hög",9]
[null,null,4,"Om kostnader belastar verksamheterna kan de avstå från att utveckla digitala patientenkäter","2: Låg","Pappersenkäter fortsätter användas","Hindrar nyttohemtagningen","3: Hög",6]
[null,null,5,"Medarbetare tar inte till sig det nya arbetssättet med digitala patientenkäter ","2: Låg","Pappersenkäter fortsätter användas","Hindrar nyttohemtagningen","3: Hög",6]
[null,null,6,{"$nulls":5},""]
[null,null,7,{"$nulls":5},""]
[null,null,8,{"$nulls":5},""]
[null,null,9,{"$nulls":5},""]
[null,null,10,{"$nulls":5},""]
[null,null,11,{"$nulls":5},""]
[null,null,12,{"$nulls":5},""]
[null,null,13,{"$nulls":5},""]
[null,null,14,{"$nulls":5},""]
[null,null,15,{"$nulls":5},""]
[null,null,16,{"$nulls":5},""]
[null,null,17,{"$nulls":5},""]
[null,null,18,{"$nulls":5},""]
[null,null,19,{"$nulls":5},""]
[null,null,20,{"$nulls":5},""]
[]
[{"$nulls":3},"Gör en sammantagen bedömning av risker och hinder för att åstadkomma de avsedda föändringarna med utvecklingsinsatsen "]
[{"$nulls":3},"Sammantagen bedömning av risker och hinder"]
[]
[{"$nulls":6},{"$f":"IFERROR(1*LEFT(D72,FIND(\":\",D72)-1),\"\")","v":""}]

{"sheet":"Business Case","index":8,"n_rows":93,"n_cols":58,"rows_kept":93,"merged":[[0,46,0,53],[1,2,1,8],[1,9,1,15],[1,16,1,22],[1,23,1,29],[1,30,1,35],[1,36,1,42],[2,2,2,8],[2,9,2,15],[2,16,2,22],[2,23,2,29],[2,30,2,35],[2,36,2,42],[2,47,4,53],[3,2,3,8],[3,9,3,15],[3,16,3,22],[3,23,3,29],[5,2,5,8],[5,9,5,15],[5,16,5,22],[5,23,5,29],[5,47,5,53],[6,2,6,8],[6,9,6,15],[6,16,6,22],[6,23,6,29],[6,47,6,53],[7,2,7,8],[7,9,7,15],[7,16,7,22],[7,23,7,29],[7,47,7,53],[8,47,8,56],[9,2,9,21],[9,23,9,42],[9,46,9,57],[26,2,26,21],[26,23,26,42],[44,2,44,42],[47,49,47,51],[48,49,48,52],[49,49,49,52],[50,49,50,52],[51,49,51,52],[52,46,52,47],[52,49,52,52],[53,46,53,47],[53,49,53,52],[54,46,54,47],[54,49,54,52],[55,46,55,47],[55,49,55,52],[56,46,56,47],[56,49,56,52],[57,46,57,47],[57,49,57,52],[58,46,58,47],[58,49,58,52],[59,2,59,21],[59,23,59,42],[59,46,59,47],[59,49,59,52],[60,46,60,47],[60,49,60,52],[61,46,61,47],[61,49,61,52],[62,46,62,47],[62,49,62,52],[63,46,63,47],[63,49,63,52],[64,46,64,47],[64,49,64,52],[65,46,65,47],[65,49,65,52],[66,46,66,47],[66,49,66,52],[77,2,77,21],[77,23,77,42],[92,2,92,21],[92,23,92,42],[98,7,98,11],[99,2,99,6]]}
[{"$nulls":46},"BUSINESS CASE"]
[null,null,"TOTAL KOSTNAD",{"$nulls":6},"TOTAL NYTTA",{"$nulls":6},"NETTONYTTA",{"$nulls":6},"NPV",{"$nulls":6},"ROI",{"$nulls":5},"PAYBACK"]
[null,null,{"$f":"ABS(TotalKostnad)","v":916},{"$nulls":6},{"$f":"TotalNytta","v":{"v":6400,"d":"6,400"}},{"$nulls":6},{"$f":"TotalNettoNytta","v":{"v":5484,"d":"5,484"}},{"$nulls":6},{"$f":"NPV","v":{"v":5327.464563599229,"d":"5,327"}},{"$nulls":6},{"$f":"IF(-TotalKostnad=0,0,TotalNettoNytta/-TotalKostnad)","v":{"v":5.986899563318778,"d":"599%"}},{"$nulls":5},{"$f":"IF(ISNUMBER(Payback), ROUND(Payback,1) & \" år (\" & FLOOR(Startår + Payback,1) & \")\",Payback)","v":"1 år (2021)"},{"$nulls":9},"Titel:",{"$f":"Grunddata!E4","v":"Digitala patientenkäter"}]
[null,null,"TKR",{"$nulls":6},"TKR",{"$nulls":6},"TKR",{"$nulls":6},"TKR"]
[]
[null,null,"ANGELÄGENHET",{"$nulls":6},"GENOMFÖRBARHET",{"$nulls":6},"KALKYLPERIOD",{"$nulls":29},"Kalkylansviarg:",{"$f":"KalkylAnsvarig","v":"Jim Johansson"}]
[null,null,{"$f":"TotalAngelägenhet","v":{"v":3.75,"d":"3.8"}},{"$nulls":6},{"$f":"TotalGenomförbarhet","v":3.4},{"$nulls":6},{"$f":"Grunddata!D12 & \" - \" & Grunddata!D12+Grunddata!D13-1","v":"2020 - 2025"},{"$nulls":29},"Kalkyldatum:","2017-12-08"]
[null,null,"FRÅN 1 TILL 5",{"$nulls":6},"FRÅN 1 TILL 5",{"$nulls":36},"Kalkylversion:","4.0"]
[]
[null,null,"KOSTNAD PER INTRESSENT (TKR)",{"$nulls":20},"EKONOMISK NYTTA PER INTRESSENT (TKR)",{"$nulls":22},"LÖNSAMHETSKALKYL"]
[]
[{"$nulls":46},"TKR",{"$f":"Grunddata!$D$12","v":2020},{"$f":"AV12+1","v":2021},2022,2023,2024,2025,2026,2027,2028,2029,"Summa"]
[{"$nulls":46},"Nytta",{"$f":"SUM(AV14:AV22)","v":500},{"v":1180,"d":"1,180"},{"v":1180,"d":"1,180"},{"v":1180,"d":"1,180"},{"v":1180,"d":"1,180"},{"v":1180,"d":"1,180"},0,0,0,0,{"$f":"SUM(AV13:BE13)","v":{"v":6400,"d":"6,400"}}]
[{"$nulls":45},"+",{"$f":"'-Admin-'!F7","v":"Reducerad personalkostnad"},{"$f":"SUMIF('Ekonomiska nyttor'!$AT$7:$AT$21,'Business Case'!$AU14,'Ekonomiska nyttor'!AD$7:AD$21)","v":430},{"$f":"SUMIF('Ekonomiska nyttor'!$AT$7:$AT$21,'Business Case'!$AU14,'Ekonomiska nyttor'!AE$7:AE$21)","v":935},{"$f":"SUMIF('Ekonomiska nyttor'!$AT$7:$AT$21,'Business Case'!$AU14,'Ekonomiska nyttor'!AF$7:AF$21)","v":935},{"$f":"SUMIF('Ekonomiska nyttor'!$AT$7:$AT$21,'Business Case'!$AU14,'Ekonomiska nyttor'!AG$7:AG$21)","v":935},{"$f":"SUMIF('Ekonomiska nyttor'!$AT$7:$AT$21,'Business Case'!$AU14,'Ekonomiska nyttor'!AH$7:AH$21)","v":935},{"$f":"SUMIF('Ekonomiska nyttor'!$AT$7:$AT$21,'Business Case'!$AU14,'Ekonomiska nyttor'!AI$7:AI$21)","v":935},{"$f":"SUMIF('Ekonomiska nyttor'!$AT$7:$AT$21,'Business Case'!$AU14,'Ekonomiska nyttor'!AJ$7:AJ$21)","v":0},{"$f":"SUMIF('Ekonomiska nyttor'!$AT$7:$AT$21,'Business Case'!$AU14,'Ekonomiska nyttor'!AK$7:AK$21)","v":0},{"$f":"SUMIF('Ekonomiska nyttor'!$AT$7:$AT$21,'Business Case'!$AU14,'Ekonomiska nyttor'!AL$7:AL$21)","v":0},{"$f":"SUMIF('Ekonomiska nyttor'!$AT$7:$AT$21,'Business Case'!$AU14,'Ekonomiska nyttor'!AM$7:AM$21)","v":0},{"v":5105,"d":"5,105"}]
[{"$nulls":45},"+",{"$f":"'-Admin-'!F8","v":"Reducerad lokalkostnad"},{"$f":"SUMIF('Ekonomiska nyttor'!$AT$7:$AT$21,'Business Case'!$AU15,'Ekonomiska nyttor'!AD$7:AD$21)","v":0},{"$f":"SUMIF('Ekonomiska nyttor'!$AT$7:$AT$21,'Business Case'!$AU15,'Ekonomiska nyttor'!AE$7:AE$21)","v":0},{"$f":"SUMIF('Ekonomiska nyttor'!$AT$7:$AT$21,'Business Case'!$AU15,'Ekonomiska nyttor'!AF$7:AF$21)","v":0},{"$f":"SUMIF('Ekonomiska nyttor'!$AT$7:$AT$21,'Business Case'!$AU15,'Ekonomiska nyttor'!AG$7:AG$21)","v":0},{"$f":"SUMIF('Ekonomiska nyttor'!$AT$7:$AT$21,'Business Case'!$AU15,'Ekonomiska nyttor'!AH$7:AH$21)","v":0},{"$f":"SUMIF('Ekonomiska nyttor'!$AT$7:$AT$21,'Business Case'!$AU15,'Ekonomiska nyttor'!AI$7:AI$21)","v":0},{"$f":"SUMIF('Ekonomiska nyttor'!$AT$7:$AT$21,'Business Case'!$AU15,'Ekonomiska nyttor'!AJ$7:AJ$21)","v":0},{"$f":"SUMIF('Ekonomiska nyttor'!$AT$7:$AT$21,'Business Case'!$AU15,'Ekonomiska nyttor'!AK$7:AK$21)","v":0},{"$f":"SUMIF('Ekonomiska nyttor'!$AT$7:$AT$21,'Business Case'!$AU15,'Ekonomiska nyttor'!AL$7:AL$21)","v":0},{"$f":"SUMIF('Ekonomiska nyttor'!$AT$7:$AT$21,'Business Case'!$AU15,'Ekonomiska nyttor'!AM$7:AM$21)","v":0},0]
[{"$nulls":45},"+",{"$f":"'-Admin-'!F9","v":"Reducerad it-kostnad"},{"$f":"SUMIF('Ekonomiska nyttor'!$AT$7:$AT$21,'Business Case'!$AU16,'Ekonomiska nyttor'!AD$7:AD$21)","v":0},{"$f":"SUMIF('Ekonomiska nyttor'!$AT$7:$AT$21,'Business Case'!$AU16,'Ekonomiska nyttor'!AE$7:AE$21)","v":0},{"$f":"SUMIF('Ekonomiska nyttor'!$AT$7:$AT$21,'Business Case'!$AU16,'Ekonomiska nyttor'!AF$7:AF$21)","v":0},{"$f":"SUMIF('Ekonomiska nyttor'!$AT$7:$AT$21,'Business Case'!$AU16,'Ekonomiska nyttor'!AG$7:AG$21)","v":0},{"$f":"SUMIF('Ekonomiska nyttor'!$AT$7:$AT$21,'Business Case'!$AU16,'Ekonomiska nyttor'!AH$7:AH$21)","v":0},{"$f":"SUMIF('Ekonomiska nyttor'!$AT$7:$AT$21,'Business Case'!$AU16,'Ekonomiska nyttor'!AI$7:AI$21)","v":0},{"$f":"SUMIF('Ekonomiska nyttor'!$AT$7:$AT$21,'Business Case'!$AU16,'Ekonomiska nyttor'!AJ$7:AJ$21)","v":0},{"$f":"SUMIF('Ekonomiska nyttor'!$AT$7:$AT$21,'Business Case'!$AU16,'Ekonomiska nyttor'!AK$7:AK$21)","v":0},{"$f":"SUMIF('Ekonomiska nyttor'!$AT$7:$AT$21,'Business Case'!$AU16,'Ekonomiska nyttor'!AL$7:AL$21)","v":0},{"$f":"SUMIF('Ekonomiska nyttor'!$AT$7:$AT$21,'Business Case'!$AU16,'Ekonomiska nyttor'!AM$7:AM$21)","v":0},0]
[{"$nulls":45},"+",{"$f":"'-Admin-'!F10","v":"Reducerad kvalitetsbristkostnader"},{"$f":"SUMIF('Ekonomiska nyttor'!$AT$7:$AT$21,'Business Case'!$AU17,'Ekonomiska nyttor'!AD$7:AD$21)","v":0},{"$f":"SUMIF('Ekonomiska nyttor'!$AT$7:$AT$21,'Business Case'!$AU17,'Ekonomiska nyttor'!AE$7:AE$21)","v":0},{"$f":"SUMIF('Ekonomiska nyttor'!$AT$7:$AT$21,'Business Case'!$AU17,'Ekonomiska nyttor'!AF$7:AF$21)","v":0},{"$f":"SUMIF('Ekonomiska nyttor'!$AT$7:$AT$21,'Business Case'!$AU17,'Ekonomiska nyttor'!AG$7:AG$21)","v":0},{"$f":"SUMIF('Ekonomiska nyttor'!$AT$7:$AT$21,'Business Case'!$AU17,'Ekonomiska nyttor'!AH$7:AH$21)","v":0},{"$f":"SUMIF('Ekonomiska nyttor'!$AT$7:$AT$21,'Business Case'!$AU17,'Ekonomiska nyttor'!AI$7:AI$21)","v":0},{"$f":"SUMIF('Ekonomiska nyttor'!$AT$7:$AT$21,'Business Case'!$AU17,'Ekonomiska nyttor'!AJ$7:AJ$21)","v":0},{"$f":"SUMIF('Ekonomiska nyttor'!$AT$7:$AT$21,'Business Case'!$AU17,'Ekonomiska nyttor'!AK$7:AK$21)","v":0},{"$f":"SUMIF('Ekonomiska nyttor'!$AT$7:$AT$21,'Business Case'!$AU17,'Ekonomiska nyttor'!AL$7:AL$21)","v":0},{"$f":"SUMIF('Ekonomiska nyttor'!$AT$7:$AT$21,'Business Case'!$AU17,'Ekonomiska nyttor'!AM$7:AM$21)","v":0},0]
[{"$nulls":45},"+",{"$f":"'-Admin-'!F11","v":"Reducerad admin.kostnader"},{"$f":"SUMIF('Ekonomiska nyttor'!$AT$7:$AT$21,'Business Case'!$AU18,'Ekonomiska nyttor'!AD$7:AD$21)","v":0},{"$f":"SUMIF('Ekonomiska nyttor'!$AT$7:$AT$21,'Business Case'!$AU18,'Ekonomiska nyttor'!AE$7:AE$21)","v":0},{"$f":"SUMIF('Ekonomiska nyttor'!$AT$7:$AT$21,'Business Case'!$AU18,'Ekonomiska nyttor'!AF$7:AF$21)","v":0},{"$f":"SUMIF('Ekonomiska nyttor'!$AT$7:$AT$21,'Business Case'!$AU18,'Ekonomiska nyttor'!AG$7:AG$21)","v":0},{"$f":"SUMIF('Ekonomiska nyttor'!$AT$7:$AT$21,'Business Case'!$AU18,'Ekonomiska nyttor'!AH$7:AH$21)","v":0},{"$f":"SUMIF('Ekonomiska nyttor'!$AT$7:$AT$21,'Business Case'!$AU18,'Ekonomiska nyttor'!AI$7:AI$21)","v":0},{"$f":"SUMIF('Ekonomiska nyttor'!$AT$7:$AT$21,'Business Case'!$AU18,'Ekonomiska nyttor'!AJ$7:AJ$21)","v":0},{"$f":"SUMIF('Ekonomiska nyttor'!$AT$7:$AT$21,'Business Case'!$AU18,'Ekonomiska nyttor'!AK$7:AK$21)","v":0},{"$f":"SUMIF('Ekonomiska nyttor'!$AT$7:$AT$21,'Business Case'!$AU18,'Ekonomiska nyttor'!AL$7:AL$21)","v":0},{"$f":"SUMIF('Ekonomiska nyttor'!$AT$7:$AT$21,'Business Case'!$AU18,'Ekonomiska nyttor'!AM$7:AM$21)","v":0},0]
[{"$nulls":45},"+",{"$f":"'-Admin-'!F12","v":"Övriga besparingar"},{"$f":"SUMIF('Ekonomiska nyttor'!$AT$7:$AT$21,'Business Case'!$AU19,'Ekonomiska nyttor'!AD$7:AD$21)","v":70},{"$f":"SUMIF('Ekonomiska nyttor'!$AT$7:$AT$21,'Business Case'!$AU19,'Ekonomiska nyttor'!AE$7:AE$21)","v":245},{"$f":"SUMIF('Ekonomiska nyttor'!$AT$7:$AT$21,'Business Case'!$AU19,'Ekonomiska nyttor'!AF$7:AF$21)","v":245},{"$f":"SUMIF('Ekonomiska nyttor'!$AT$7:$AT$21,'Business Case'!$AU19,'Ekonomiska nyttor'!AG$7:AG$21)","v":245},{"$f":"SUMIF('Ekonomiska nyttor'!$AT$7:$AT$21,'Business Case'!$AU19,'Ekonomiska nyttor'!AH$7:AH$21)","v":245},{"$f":"SUMIF('Ekonomiska nyttor'!$AT$7:$AT$21,'Business Case'!$AU19,'Ekonomiska nyttor'!AI$7:AI$21)","v":245},{"$f":"SUMIF('Ekonomiska nyttor'!$AT$7:$AT$21,'Business Case'!$AU19,'Ekonomiska nyttor'!AJ$7:AJ$21)","v":0},{"$f":"SUMIF('Ekonomiska nyttor'!$AT$7:$AT$21,'Business Case'!$AU19,'Ekonomiska nyttor'!AK$7:AK$21)","v":0},{"$f":"SUMIF('Ekonomiska nyttor'!$AT$7:$AT$21,'Business Case'!$AU19,'Ekonomiska nyttor'!AL$7:AL$21)","v":0},{"$f":"SUMIF('Ekonomiska nyttor'!$AT$7:$AT$21,'Business Case'!$AU19,'Ekonomiska nyttor'!AM$7:AM$21)","v":0},{"v":1295,"d":"1,295"}]
[{"$nulls":45},"+",{"$f":"'-Admin-'!F13","v":"Ökade intäkter"},{"$f":"SUMIF('Ekonomiska nyttor'!$AT$7:$AT$21,'Business Case'!$AU20,'Ekonomiska nyttor'!AD$7:AD$21)","v":0},{"$f":"SUMIF('Ekonomiska nyttor'!$AT$7:$AT$21,'Business Case'!$AU20,'Ekonomiska nyttor'!AE$7:AE$21)","v":0},{"$f":"SUMIF('Ekonomiska nyttor'!$AT$7:$AT$21,'Business Case'!$AU20,'Ekonomiska nyttor'!AF$7:AF$21)","v":0},{"$f":"SUMIF('Ekonomiska nyttor'!$AT$7:$AT$21,'Business Case'!$AU20,'Ekonomiska nyttor'!AG$7:AG$21)","v":0},{"$f":"SUMIF('Ekonomiska nyttor'!$AT$7:$AT$21,'Business Case'!$AU20,'Ekonomiska nyttor'!AH$7:AH$21)","v":0},{"$f":"SUMIF('Ekonomiska nyttor'!$AT$7:$AT$21,'Business Case'!$AU20,'Ekonomiska nyttor'!AI$7:AI$21)","v":0},{"$f":"SUMIF('Ekonomiska nyttor'!$AT$7:$AT$21,'Business Case'!$AU20,'Ekonomiska nyttor'!AJ$7:AJ$21)","v":0},{"$f":"SUMIF('Ekonomiska nyttor'!$AT$7:$AT$21,'Business Case'!$AU20,'Ekonomiska nyttor'!AK$7:AK$21)","v":0},{"$f":"SUMIF('Ekonomiska nyttor'!$AT$7:$AT$21,'Business Case'!$AU20,'Ekonomiska nyttor'!AL$7:AL$21)","v":0},{"$f":"SUMIF('Ekonomiska nyttor'!$AT$7:$AT$21,'Business Case'!$AU20,'Ekonomiska nyttor'!AM$7:AM$21)","v":0},0]
[{"$nulls":45},"+",{"$f":"'-Admin-'!F14","v":"Oklassificerad 5"},{"$f":"SUMIF('Ekonomiska nyttor'!$AT$7:$AT$21,'Business Case'!$AU21,'Ekonomiska nyttor'!AD$7:AD$21)","v":0},{"$f":"SUMIF('Ekonomiska nyttor'!$AT$7:$AT$21,'Business Case'!$AU21,'Ekonomiska nyttor'!AE$7:AE$21)","v":0},{"$f":"SUMIF('Ekonomiska nyttor'!$AT$7:$AT$21,'Business Case'!$AU21,'Ekonomiska nyttor'!AF$7:AF$21)","v":0},{"$f":"SUMIF('Ekonomiska nyttor'!$AT$7:$AT$21,'Business Case'!$AU21,'Ekonomiska nyttor'!AG$7:AG$21)","v":0},{"$f":"SUMIF('Ekonomiska nyttor'!$AT$7:$AT$21,'Business Case'!$AU21,'Ekonomiska nyttor'!AH$7:AH$21)","v":0},{"$f":"SUMIF('Ekonomiska nyttor'!$AT$7:$AT$21,'Business Case'!$AU21,'Ekonomiska nyttor'!AI$7:AI$21)","v":0},{"$f":"SUMIF('Ekonomiska nyttor'!$AT$7:$AT$21,'Business Case'!$AU21,'Ekonomiska nyttor'!AJ$7:AJ$21)","v":0},{"$f":"SUMIF('Ekonomiska nyttor'!$AT$7:$AT$21,'Business Case'!$AU21,'Ekonomiska nyttor'!AK$7:AK$21)","v":0},{"$f":"SUMIF('Ekonomiska nyttor'!$AT$7:$AT$21,'Business Case'!$AU21,'Ekonomiska nyttor'!AL$7:AL$21)","v":0},{"$f":"SUMIF('Ekonomiska nyttor'!$AT$7:$AT$21,'Business Case'!$AU21,'Ekonomiska nyttor'!AM$7:AM$21)","v":0},0]
[{"$nulls":45},"+","(blank)",{"$f":"SUMIF('Ekonomiska nyttor'!$AT$7:$AT$21,'Business Case'!$AU22,'Ekonomiska nyttor'!AD$7:AD$21)","v":0},{"$f":"SUMIF('Ekonomiska nyttor'!$AT$7:$AT$21,'Business Case'!$AU22,'Ekonomiska nyttor'!AE$7:AE$21)","v":0},{"$f":"SUMIF('Ekonomiska nyttor'!$AT$7:$AT$21,'Business Case'!$AU22,'Ekonomiska nyttor'!AF$7:AF$21)","v":0},{"$f":"SUMIF('Ekonomiska nyttor'!$AT$7:$AT$21,'Business Case'!$AU22,'Ekonomiska nyttor'!AG$7:AG$21)","v":0},{"$f":"SUMIF('Ekonomiska nyttor'!$AT$7:$AT$21,'Business Case'!$AU22,'Ekonomiska nyttor'!AH$7:AH$21)","v":0},{"$f":"SUMIF('Ekonomiska nyttor'!$AT$7:$AT$21,'Business Case'!$AU22,'Ekonomiska nyttor'!AI$7:AI$21)","v":0},{"$f":"SUMIF('Ekonomiska nyttor'!$AT$7:$AT$21,'Business Case'!$AU22,'Ekonomiska nyttor'!AJ$7:AJ$21)","v":0},{"$f":"SUMIF('Ekonomiska nyttor'!$AT$7:$AT$21,'Business Case'!$AU22,'Ekonomiska nyttor'!AK$7:AK$21)","v":0},{"$f":"SUMIF('Ekonomiska nyttor'!$AT$7:$AT$21,'Business Case'!$AU22,'Ekonomiska nyttor'!AL$7:AL$21)","v":0},{"$f":"SUMIF('Ekonomiska nyttor'!$AT$7:$AT$21,'Business Case'!$AU22,'Ekonomiska nyttor'!AM$7:AM$21)","v":0},0]
[]
[{"$nulls":46},"Kostnad",{"$f":"SUM(AV25:AV30)","v":-356},-112,-112,-112,-112,-112,0,0,0,0,{"$f":"SUM(AV24:BE24)","v":-916}]
[{"$nulls":45},"-",{"$f":"'-Admin-'!F20","v":"Utredning"},{"$f":"-SUMIF(Kostnader!$AN$6:$AN$20,'Business Case'!$AU25,Kostnader!X$6:X$20)","v":0},{"$f":"-SUMIF(Kostnader!$AN$6:$AN$20,'Business Case'!$AU25,Kostnader!Y$6:Y$20)","v":0},{"$f":"-SUMIF(Kostnader!$AN$6:$AN$20,'Business Case'!$AU25,Kostnader!Z$6:Z$20)","v":0},{"$f":"-SUMIF(Kostnader!$AN$6:$AN$20,'Business Case'!$AU25,Kostnader!AA$6:AA$20)","v":0},{"$f":"-SUMIF(Kostnader!$AN$6:$AN$20,'Business Case'!$AU25,Kostnader!AB$6:AB$20)","v":0},{"$f":"-SUMIF(Kostnader!$AN$6:$AN$20,'Business Case'!$AU25,Kostnader!AC$6:AC$20)","v":0},{"$f":"-SUMIF(Kostnader!$AN$6:$AN$20,'Business Case'!$AU25,Kostnader!AD$6:AD$20)","v":0},{"$f":"-SUMIF(Kostnader!$AN$6:$AN$20,'Business Case'!$AU25,Kostnader!AE$6:AE$20)","v":0},{"$f":"-SUMIF(Kostnader!$AN$6:$AN$20,'Business Case'!$AU25,Kostnader!AF$6:AF$20)","v":0},{"$f":"-SUMIF(Kostnader!$AN$6:$AN$20,'Business Case'!$AU25,Kostnader!AG$6:AG$20)","v":0},0]
[{"$nulls":45},"-",{"$f":"'-Admin-'!F21","v":"Investering"},{"$f":"-SUMIF(Kostnader!$AN$6:$AN$20,'Business Case'!$AU26,Kostnader!X$6:X$20)","v":0},{"$f":"-SUMIF(Kostnader!$AN$6:$AN$20,'Business Case'!$AU26,Kostnader!Y$6:Y$20)","v":0},{"$f":"-SUMIF(Kostnader!$AN$6:$AN$20,'Business Case'!$AU26,Kostnader!Z$6:Z$20)","v":0},{"$f":"-SUMIF(Kostnader!$AN$6:$AN$20,'Business Case'!$AU26,Kostnader!AA$6:AA$20)","v":0},{"$f":"-SUMIF(Kostnader!$AN$6:$AN$20,'Business Case'!$AU26,Kostnader!AB$6:AB$20)","v":0},{"$f":"-SUMIF(Kostnader!$AN$6:$AN$20,'Business Case'!$AU26,Kostnader!AC$6:AC$20)","v":0},{"$f":"-SUMIF(Kostnader!$AN$6:$AN$20,'Business Case'!$AU26,Kostnader!AD$6:AD$20)","v":0},{"$f":"-SUMIF(Kostnader!$AN$6:$AN$20,'Business Case'!$AU26,Kostnader!AE$6:AE$20)","v":0},{"$f":"-SUMIF(Kostnader!$AN$6:$AN$20,'Business Case'!$AU26,Kostnader!AF$6:AF$20)","v":0},{"$f":"-SUMIF(Kostnader!$AN$6:$AN$20,'Business Case'!$AU26,Kostnader!AG$6:AG$20)","v":0},0]
[null,null,"INDIVIDUELLA EKONOMISKA NYTTOR (NYTTA @ INTRESSENT) (TKR)",{"$nulls":20},"INDIVIDUELLA KVALITATIVA NYTTOR (NYTTA @ INTRESSENT)",{"$nulls":21},"-",{"$f":"'-Admin-'!F22","v":"Införande"},{"$f":"-SUMIF(Kostnader!$AN$6:$AN$20,'Business Case'!$AU27,Kostnader!X$6:X$20)","v":-356},{"$f":"-SUMIF(Kostnader!$AN$6:$AN$20,'Business Case'!$AU27,Kostnader!Y$6:Y$20)","v":0},{"$f":"-SUMIF(Kostnader!$AN$6:$AN$20,'Business Case'!$AU27,Kostnader!Z$6:Z$20)","v":0},{"$f":"-SUMIF(Kostnader!$AN$6:$AN$20,'Business Case'!$AU27,Kostnader!AA$6:AA$20)","v":0},{"$f":"-SUMIF(Kostnader!$AN$6:$AN$20,'Business Case'!$AU27,Kostnader!AB$6:AB$20)","v":0},{"$f":"-SUMIF(Kostnader!$AN$6:$AN$20,'Business Case'!$AU27,Kostnader!AC$6:AC$20)","v":0},{"$f":"-SUMIF(Kostnader!$AN$6:$AN$20,'Business Case'!$AU27,Kostnader!AD$6:AD$20)","v":0},{"$f":"-SUMIF(Kostnader!$AN$6:$AN$20,'Business Case'!$AU27,Kostnader!AE$6:AE$20)","v":0},{"$f":"-SUMIF(Kostnader!$AN$6:$AN$20,'Business Case'!$AU27,Kostnader!AF$6:AF$20)","v":0},{"$f":"-SUMIF(Kostnader!$AN$6:$AN$20,'Business Case'!$AU27,Kostnader!AG$6:AG$20)","v":0},-356]
[{"$nulls":45},"-",{"$f":"'-Admin-'!F23","v":"Drift/Förvaltning"},{"$f":"-SUMIF(Kostnader!$AN$6:$AN$20,'Business Case'!$AU28,Kostnader!X$6:X$20)","v":0},{"$f":"-SUMIF(Kostnader!$AN$6:$AN$20,'Business Case'!$AU28,Kostnader!Y$6:Y$20)","v":-112},{"$f":"-SUMIF(Kostnader!$AN$6:$AN$20,'Business Case'!$AU28,Kostnader!Z$6:Z$20)","v":-112},{"$f":"-SUMIF(Kostnader!$AN$6:$AN$20,'Business Case'!$AU28,Kostnader!AA$6:AA$20)","v":-112},{"$f":"-SUMIF(Kostnader!$AN$6:$AN$20,'Business Case'!$AU28,Kostnader!AB$6:AB$20)","v":-112},{"$f":"-SUMIF(Kostnader!$AN$6:$AN$20,'Business Case'!$AU28,Kostnader!AC$6:AC$20)","v":-112},{"$f":"-SUMIF(Kostnader!$AN$6:$AN$20,'Business Case'!$AU28,Kostnader!AD$6:AD$20)","v":0},{"$f":"-SUMIF(Kostnader!$AN$6:$AN$20,'Business Case'!$AU28,Kostnader!AE$6:AE$20)","v":0},{"$f":"-SUMIF(Kostnader!$AN$6:$AN$20,'Business Case'!$AU28,Kostnader!AF$6:AF$20)","v":0},{"$f":"-SUMIF(Kostnader!$AN$6:$AN$20,'Business Case'!$AU28,Kostnader!AG$6:AG$20)","v":0},-560]
[{"$nulls":45},"-",{"$f":"'-Admin-'!F24","v":"Annan"},{"$f":"-SUMIF(Kostnader!$AN$6:$AN$20,'Business Case'!$AU29,Kostnader!X$6:X$20)","v":0},{"$f":"-SUMIF(Kostnader!$AN$6:$AN$20,'Business Case'!$AU29,Kostnader!Y$6:Y$20)","v":0},{"$f":"-SUMIF(Kostnader!$AN$6:$AN$20,'Business Case'!$AU29,Kostnader!Z$6:Z$20)","v":0},{"$f":"-SUMIF(Kostnader!$AN$6:$AN$20,'Business Case'!$AU29,Kostnader!AA$6:AA$20)","v":0},{"$f":"-SUMIF(Kostnader!$AN$6:$AN$20,'Business Case'!$AU29,Kostnader!AB$6:AB$20)","v":0},{"$f":"-SUMIF(Kostnader!$AN$6:$AN$20,'Business Case'!$AU29,Kostnader!AC$6:AC$20)","v":0},{"$f":"-SUMIF(Kostnader!$AN$6:$AN$20,'Business Case'!$AU29,Kostnader!AD$6:AD$20)","v":0},{"$f":"-SUMIF(Kostnader!$AN$6:$AN$20,'Business Case'!$AU29,Kostnader!AE$6:AE$20)","v":0},{"$f":"-SUMIF(Kostnader!$AN$6:$AN$20,'Business Case'!$AU29,Kostnader!AF$6:AF$20)","v":0},{"$f":"-SUMIF(Kostnader!$AN$6:$AN$20,'Business Case'!$AU29,Kostnader!AG$6:AG$20)","v":0},0]
[{"$nulls":45},"-","(blank)",{"$f":"-SUMIF(Kostnader!$AN$6:$AN$20,'Business Case'!$AU30,Kostnader!X$6:X$20)","v":0},{"$f":"-SUMIF(Kostnader!$AN$6:$AN$20,'Business Case'!$AU30,Kostnader!Y$6:Y$20)","v":0},{"$f":"-SUMIF(Kostnader!$AN$6:$AN$20,'Business Case'!$AU30,Kostnader!Z$6:Z$20)","v":0},{"$f":"-SUMIF(Kostnader!$AN$6:$AN$20,'Business Case'!$AU30,Kostnader!AA$6:AA$20)","v":0},{"$f":"-SUMIF(Kostnader!$AN$6:$AN$20,'Business Case'!$AU30,Kostnader!AB$6:AB$20)","v":0},{"$f":"-SUMIF(Kostnader!$AN$6:$AN$20,'Business Case'!$AU30,Kostnader!AC$6:AC$20)","v":0},{"$f":"-SUMIF(Kostnader!$AN$6:$AN$20,'Business Case'!$AU30,Kostnader!AD$6:AD$20)","v":0},{"$f":"-SUMIF(Kostnader!$AN$6:$AN$20,'Business Case'!$AU30,Kostnader!AE$6:AE$20)","v":0},{"$f":"-SUMIF(Kostnader!$AN$6:$AN$20,'Business Case'!$AU30,Kostnader!AF$6:AF$20)","v":0},{"$f":"-SUMIF(Kostnader!$AN$6:$AN$20,'Business Case'!$AU30,Kostnader!AG$6:AG$20)","v":0},0]
[]
[{"$nulls":45},"=","Nettonytta",{"$f":"AV13+AV24","v":144},{"v":1068,"d":"1,068"},{"v":1068,"d":"1,068"},{"v":1068,"d":"1,068"},{"v":1068,"d":"1,068"},{"v":1068,"d":"1,068"},0,0,0,0,{"$f":"SUM(AV32:BE32)","v":{"v":5484,"d":"5,484"}}]
[{"$nulls":45},"=","Ack. Nettonytta",{"$f":"IF(AV12=Grunddata!$D$12,'Business Case'!AV32,'Business Case'!AV32+#REF!)","v":144},{"$f":"IF(AW12=Grunddata!$D$12,'Business Case'!AW32,'Business Case'!AW32+'Business Case'!AV33)","v":{"v":1212,"d":"1,212"}},{"$f":"IF(AX12=Grunddata!$D$12,'Business Case'!AX32,'Business Case'!AX32+'Business Case'!AW33)","v":{"v":2280,"d":"2,280"}},{"$f":"IF(AY12=Grunddata!$D$12,'Business Case'!AY32,'Business Case'!AY32+'Business Case'!AX33)","v":{"v":3348,"d":"3,348"}},{"$f":"IF(AZ12=Grunddata!$D$12,'Business Case'!AZ32,'Business Case'!AZ32+'Business Case'!AY33)","v":{"v":4416,"d":"4,416"}},{"$f":"IF(BA12=Grunddata!$D$12,'Business Case'!BA32,'Business Case'!BA32+'Business Case'!AZ33)","v":{"v":5484,"d":"5,484"}},{"$f":"IF(BB12=Grunddata!$D$12,'Business Case'!BB32,'Business Case'!BB32+'Business Case'!BA33)","v":{"v":5484,"d":"5,484"}},{"$f":"IF(BC12=Grunddata!$D$12,'Business Case'!BC32,'Business Case'!BC32+'Business Case'!BB33)","v":{"v":5484,"d":"5,484"}},{"$f":"IF(BD12=Grunddata!$D$12,'Business Case'!BD32,'Business Case'!BD32+'Business Case'!BC33)","v":{"v":5484,"d":"5,484"}},{"$f":"IF(BE12=Grunddata!$D$12,'Business Case'!BE32,'Business Case'!BE32+'Business Case'!BD33)","v":{"v":5484,"d":"5,484"}},{"$f":"BE33","v":{"v":5484,"d":"5,484"}}]
[]
[{"$nulls":45},"=","Diskonterat kassaflöde",{"$f":"AV32/(1+Grunddata!$D$14)^(AV12-Grunddata!$D$12)","v":144},{"$f":"AW32/(1+Kalkylränta)^(AW12-Startår)","v":{"v":1057.4257425742574,"d":"1,057"}},{"v":1046.9561807665916,"d":"1,047"},{"v":1036.5902779867245,"d":"1,037"},{"v":1026.3270079076478,"d":"1,026"},{"v":1016.1653543640078,"d":"1,016"},0,0,0,0,{"$f":"SUM(AV35:BE35)","v":{"v":5327.464563599229,"d":"5,327"}}]
[{"$nulls":45},"=","Ack. diskonterat kassaflöde",{"$f":"AV35","v":144},{"$f":"AV36+AW35","v":{"v":1201.4257425742574,"d":"1,201"}},{"v":2248.381923340849,"d":"2,248"},{"v":3284.972201327573,"d":"3,285"},{"v":4311.2992092352215,"d":"4,311"},{"v":5327.464563599229,"d":"5,327"},{"v":5327.464563599229,"d":"5,327"},{"v":5327.464563599229,"d":"5,327"},{"v":5327.464563599229,"d":"5,327"},{"v":5327.464563599229,"d":"5,327"},{"$f":"BE36","v":{"v":5327.464563599229,"d":"5,327"}}]
{"$rows_empty":8}
[null,null,"NETTONYTTA PER ÅR (TKR)",{"$nulls":43},"Identifierade risker"]
[]
[{"$nulls":46},"Vad kan inträffa",null,null,"Vad är konsekvensen",{"$nulls":3},"Riskvärde"]
[{"$nulls":46},{"$f":"IF('Risk- & Hinderanalys'!D7<>\"\",'Risk- & Hinderanalys'!D7,\"\")","v":"Patienten saknar bankid för inloggning på 1177 (86% av befolkningen har bankid)"},null,null,{"$f":"IF('Risk- & Hinderanalys'!G7<>\"\",'Risk- & Hinderanalys'!G7,\"\")","v":"Hindrar nyttohemtagningen"},{"$nulls":3},{"$f":"IF('Risk- & Hinderanalys'!I7<>\"\",'Risk- & Hinderanalys'!I7,\"\")","v":6}]
[{"$nulls":46},{"$f":"IF('Risk- & Hinderanalys'!D8<>\"\",'Risk- & Hinderanalys'!D8,\"\")","v":"Patienten har inte aktiverat avisering (SMS/e-post) för 1177 inkorgen (70% av befolkningen i Västerbotten har aktivt konto, ca 55% av dessa har avisering)"},null,null,{"$f":"IF('Risk- & Hinderanalys'!G8<>\"\",'Risk- & Hinderanalys'!G8,\"\")","v":"Hindrar nyttohemtagningen"},{"$nulls":3},{"$f":"IF('Risk- & Hinderanalys'!I8<>\"\",'Risk- & Hinderanalys'!I8,\"\")","v":6}]
[{"$nulls":46},{"$f":"IF('Risk- & Hinderanalys'!D9<>\"\",'Risk- & Hinderanalys'!D9,\"\")","v":"Begränsad möjlighet för ungdomar 13-17 år att skaffa bankid (olika banker har olika regler, \n67% av ungdomar i detta åldersintervall har bankid)"},null,null,{"$f":"IF('Risk- & Hinderanalys'!G9<>\"\",'Risk- & Hinderanalys'!G9,\"\")","v":"Hindrar nyttohemtagningen"},{"$nulls":3},{"$f":"IF('Risk- & Hinderanalys'!I9<>\"\",'Risk- & Hinderanalys'!I9,\"\")","v":9}]
[{"$nulls":46},{"$f":"IF('Risk- & Hinderanalys'!D10<>\"\",'Risk- & Hinderanalys'!D10,\"\")","v":"Om kostnader belastar verksamheterna kan de avstå från att utveckla digitala patientenkäter"},null,null,{"$f":"IF('Risk- & Hinderanalys'!G10<>\"\",'Risk- & Hinderanalys'!G10,\"\")","v":"Hindrar nyttohemtagningen"},{"$nulls":3},{"$f":"IF('Risk- & Hinderanalys'!I10<>\"\",'Risk- & Hinderanalys'!I10,\"\")","v":6}]
[{"$nulls":46},{"$f":"IF('Risk- & Hinderanalys'!D11<>\"\",'Risk- & Hinderanalys'!D11,\"\")","v":"Medarbetare tar inte till sig det nya arbetssättet med digitala patientenkäter "},null,null,{"$f":"IF('Risk- & Hinderanalys'!G11<>\"\",'Risk- & Hinderanalys'!G11,\"\")","v":"Hindrar nyttohemtagningen"},{"$nulls":3},{"$f":"IF('Risk- & Hinderanalys'!I11<>\"\",'Risk- & Hinderanalys'!I11,\"\")","v":6}]
[{"$nulls":46},{"$f":"IF('Risk- & Hinderanalys'!D12<>\"\",'Risk- & Hinderanalys'!D12,\"\")","v":""},null,null,{"$f":"IF('Risk- & Hinderanalys'!G12<>\"\",'Risk- & Hinderanalys'!G12,\"\")","v":""},{"$nulls":3},{"$f":"IF('Risk- & Hinderanalys'!I12<>\"\",'Risk- & Hinderanalys'!I12,\"\")","v":""}]
[{"$nulls":46},{"$f":"IF('Risk- & Hinderanalys'!D13<>\"\",'Risk- & Hinderanalys'!D13,\"\")","v":""},null,null,{"$f":"IF('Risk- & Hinderanalys'!G13<>\"\",'Risk- & Hinderanalys'!G13,\"\")","v":""},{"$nulls":3},{"$f":"IF('Risk- & Hinderanalys'!I13<>\"\",'Risk- & Hinderanalys'!I13,\"\")","v":""}]
[{"$nulls":46},{"$f":"IF('Risk- & Hinderanalys'!D14<>\"\",'Risk- & Hinderanalys'!D14,\"\")","v":""},null,null,{"$f":"IF('Risk- & Hinderanalys'!G14<>\"\",'Risk- & Hinderanalys'!G14,\"\")","v":""},{"$nulls":3},{"$f":"IF('Risk- & Hinderanalys'!I14<>\"\",'Risk- & Hinderanalys'!I14,\"\")","v":""}]
[{"$nulls":46},{"$f":"IF('Risk- & Hinderanalys'!D15<>\"\",'Risk- & Hinderanalys'!D15,\"\")","v":""},null,null,{"$f":"IF('Risk- & Hinderanalys'!G15<>\"\",'Risk- & Hinderanalys'!G15,\"\")","v":""},{"$nulls":3},{"$f":"IF('Risk- & Hinderanalys'!I15<>\"\",'Risk- & Hinderanalys'!I15,\"\")","v":""}]
[{"$nulls":46},{"$f":"IF('Risk- & Hinderanalys'!D16<>\"\",'Risk- & Hinderanalys'!D16,\"\")","v":""},null,null,{"$f":"IF('Risk- & Hinderanalys'!G16<>\"\",'Risk- & Hinderanalys'!G16,\"\")","v":""},{"$nulls":3},{"$f":"IF('Risk- & Hinderanalys'!I16<>\"\",'Risk- & Hinderanalys'!I16,\"\")","v":""}]
[{"$nulls":46},{"$f":"IF('Risk- & Hinderanalys'!D17<>\"\",'Risk- & Hinderanalys'!D17,\"\")","v":""},null,null,{"$f":"IF('Risk- & Hinderanalys'!G17<>\"\",'Risk- & Hinderanalys'!G17,\"\")","v":""},{"$nulls":3},{"$f":"IF('Risk- & Hinderanalys'!I17<>\"\",'Risk- & Hinderanalys'!I17,\"\")","v":""}]
[{"$nulls":46},{"$f":"IF('Risk- & Hinderanalys'!D18<>\"\",'Risk- & Hinderanalys'!D18,\"\")","v":""},null,null,{"$f":"IF('Risk- & Hinderanalys'!G18<>\"\",'Risk- & Hinderanalys'!G18,\"\")","v":""},{"$nulls":3},{"$f":"IF('Risk- & Hinderanalys'!I18<>\"\",'Risk- & Hinderanalys'!I18,\"\")","v":""}]
[null,null,"ANTAL KVALITATIVA NYTTOR PER KATEGORI OCH BETYDELSE",{"$nulls":20},"OSÄKERHETSBEDÖMNING SÄMST-TROLIGT-BÄST (TKR)",{"$nulls":22},{"$f":"IF('Risk- & Hinderanalys'!D19<>\"\",'Risk- & Hinderanalys'!D19,\"\")","v":""},null,null,{"$f":"IF('Risk- & Hinderanalys'!G19<>\"\",'Risk- & Hinderanalys'!G19,\"\")","v":""},{"$nulls":3},{"$f":"IF('Risk- & Hinderanalys'!I19<>\"\",'Risk- & Hinderanalys'!I19,\"\")","v":""}]
[{"$nulls":46},{"$f":"IF('Risk- & Hinderanalys'!D20<>\"\",'Risk- & Hinderanalys'!D20,\"\")","v":""},null,null,{"$f":"IF('Risk- & Hinderanalys'!G20<>\"\",'Risk- & Hinderanalys'!G20,\"\")","v":""},{"$nulls":3},{"$f":"IF('Risk- & Hinderanalys'!I20<>\"\",'Risk- & Hinderanalys'!I20,\"\")","v":""}]
[{"$nulls":46},{"$f":"IF('Risk- & Hinderanalys'!D21<>\"\",'Risk- & Hinderanalys'!D21,\"\")","v":""},null,null,{"$f":"IF('Risk- & Hinderanalys'!G21<>\"\",'Risk- & Hinderanalys'!G21,\"\")","v":""},{"$nulls":3},{"$f":"IF('Risk- & Hinderanalys'!I21<>\"\",'Risk- & Hinderanalys'!I21,\"\")","v":""}]
[{"$nulls":46},{"$f":"IF('Risk- & Hinderanalys'!D22<>\"\",'Risk- & Hinderanalys'!D22,\"\")","v":""},null,null,{"$f":"IF('Risk- & Hinderanalys'!G22<>\"\",'Risk- & Hinderanalys'!G22,\"\")","v":""},{"$nulls":3},{"$f":"IF('Risk- & Hinderanalys'!I22<>\"\",'Risk- & Hinderanalys'!I22,\"\")","v":""}]
[{"$nulls":46},{"$f":"IF('Risk- & Hinderanalys'!D23<>\"\",'Risk- & Hinderanalys'!D23,\"\")","v":""},null,null,{"$f":"IF('Risk- & Hinderanalys'!G23<>\"\",'Risk- & Hinderanalys'!G23,\"\")","v":""},{"$nulls":3},{"$f":"IF('Risk- & Hinderanalys'!I23<>\"\",'Risk- & Hinderanalys'!I23,\"\")","v":""}]
[{"$nulls":46},{"$f":"IF('Risk- & Hinderanalys'!D24<>\"\",'Risk- & Hinderanalys'!D24,\"\")","v":""},null,null,{"$f":"IF('Risk- & Hinderanalys'!G24<>\"\",'Risk- & Hinderanalys'!G24,\"\")","v":""},{"$nulls":3},{"$f":"IF('Risk- & Hinderanalys'!I24<>\"\",'Risk- & Hinderanalys'!I24,\"\")","v":""}]
[{"$nulls":46},{"$f":"IF('Risk- & Hinderanalys'!D25<>\"\",'Risk- & Hinderanalys'!D25,\"\")","v":""},null,null,{"$f":"IF('Risk- & Hinderanalys'!G25<>\"\",'Risk- & Hinderanalys'!G25,\"\")","v":""},{"$nulls":3},{"$f":"IF('Risk- & Hinderanalys'!I25<>\"\",'Risk- & Hinderanalys'!I25,\"\")","v":""}]
[{"$nulls":46},{"$f":"IF('Risk- & Hinderanalys'!D26<>\"\",'Risk- & Hinderanalys'!D26,\"\")","v":""},null,null,{"$f":"IF('Risk- & Hinderanalys'!G26<>\"\",'Risk- & Hinderanalys'!G26,\"\")","v":""},{"$nulls":3},{"$f":"IF('Risk- & Hinderanalys'!I26<>\"\",'Risk- & Hinderanalys'!I26,\"\")","v":""}]
{"$rows_empty":10}
[null,null,"EKONOMISK NYTTA PER KATEGORI (TKR)",{"$nulls":20},"KOSTNAD PER KOSTNADSTYP (TKR)"]
{"$rows_empty":14}
[null,null,"NETTONYTTA,  ANGELÄGENHET, GENOMFÖRBARHET (TKR)"]

{"sheet":"-Admin-","index":9,"n_rows":66,"n_cols":12,"rows_kept":66,"hidden":true}
[null,null,"ADMIN"]
[null,null,"I den här fliken administreras samtliga värdemängder. Se systemdokumentationen för instruktioner."]
[]
[null,null,"Nytta"]
[{"$nulls":9},"OBS. Siffrorna innan semi-kolonet för respektive värde anger beräknat poäng. Formatet i listan nedan måste alltså vara nn:text där nn är den poäng som kopplas till valet."]
[null,null,"Enhet",null,null,"Klassificering Kvantitativ",null,"Klassificering Kvalitativ",null,"Betydelse"]
[null,null,"tkr (tusen kronor)",null,null,"Reducerad personalkostnad",null,"Minskad kvalitetsbrister",null,"1: Mycket låg"]
[null,null,"Interna timmar",null,null,"Reducerad lokalkostnad",null,"Snabbare hantering av ärenden",null,"2: Låg"]
[null,null,"Externa timmar",null,null,"Reducerad it-kostnad",null,"Ny funtionalitet/Högre service",null,"3: Medium"]
[{"$nulls":5},"Reducerad kvalitetsbristkostnader",null,"Ökad rättsäkerhet",null,"4: Hög"]
[{"$nulls":5},"Reducerad admin.kostnader",null,"Ökad tillgänglighet",null,"5: Mycket hög"]
[{"$nulls":5},"Övriga besparingar",null,"Ökat förtroende"]
[{"$nulls":5},"Ökade intäkter",null,"Ökad insyn"]
[{"$nulls":5},"Oklassificerad 5",null,"Frigjord arbetstid"]
[{"$nulls":7},"Annan"]
[]
[null,null,"Kostnad"]
[]
[null,null,"Enhet",null,null,"Kostnadstyp"]
[null,null,"tkr (tusen kronor)",null,null,"Utredning"]
[null,null,"Interna Timmar",null,null,"Investering"]
[null,null,"Externa Timmar",null,null,"Införande"]
[{"$nulls":5},"Drift/Förvaltning"]
[{"$nulls":5},"Annan"]
[]
[]
[]
[null,null,"Intressenter"]
[null,null,"Intressent kategori"]
[null,null,"Internationell aktör"]
[null,null,"EU"]
[null,null,"Statlig myndighet"]
[null,null,"Region/Landsting"]
[null,null,"Kommun"]
[null,null,"Intresseorganisation"]
[null,null,"Företag"]
[null,null,"Privatperson"]
[null,null,"Samhället"]
[]
[null,null,"Genomförbarhet"]
[null,null,"OBS. Siffrorna innan semi-kolonet för respektive värde anger beräknat poäng. Formatet i listan nedan måste alltså vara nn:text där nn är den poäng som kopplas till valet."]
[null,null,"Genomförbarhet","Kontroll",null,"Genomförbarhet","Kontroll"]
[null,null,"1: Mycket låg",{"$f":"IF(NOT(ISNUMBER(1*LEFT(C43,FIND(\":\",C43)-1))),\"FEL: Tecken innan kolon måste vara numeriskt\",\"OK. Poäng=\" & LEFT(C43,FIND(\":\",C43)-1))","v":"OK. Poäng=1"},null,"5: Mycket låg",{"$f":"IF(NOT(ISNUMBER(1*LEFT(F43,FIND(\":\",F43)-1))),\"FEL: Tecken innan kolon måste vara numeriskt\",\"OK. Poäng=\" & LEFT(F43,FIND(\":\",F43)-1))","v":"OK. Poäng=5"}]
[null,null,"2: Låg",{"$f":"IF(NOT(ISNUMBER(1*LEFT(C44,FIND(\":\",C44)-1))),\"FEL: Tecken innan kolon måste vara numeriskt\",\"OK. Poäng=\" & LEFT(C44,FIND(\":\",C44)-1))","v":"OK. Poäng=2"},null,"4: Låg",{"$f":"IF(NOT(ISNUMBER(1*LEFT(F44,FIND(\":\",F44)-1))),\"FEL: Tecken innan kolon måste vara numeriskt\",\"OK. Poäng=\" & LEFT(F44,FIND(\":\",F44)-1))","v":"OK. Poäng=4"}]
[null,null,"3: Medel",{"$f":"IF(NOT(ISNUMBER(1*LEFT(C45,FIND(\":\",C45)-1))),\"FEL: Tecken innan kolon måste vara numeriskt\",\"OK. Poäng=\" & LEFT(C45,FIND(\":\",C45)-1))","v":"OK. Poäng=3"},null,"3: Medel",{"$f":"IF(NOT(ISNUMBER(1*LEFT(F45,FIND(\":\",F45)-1))),\"FEL: Tecken innan kolon måste vara numeriskt\",\"OK. Poäng=\" & LEFT(F45,FIND(\":\",F45)-1))","v":"OK. Poäng=3"}]
[null,null,"4: Hög",{"$f":"IF(NOT(ISNUMBER(1*LEFT(C46,FIND(\":\",C46)-1))),\"FEL: Tecken innan kolon måste vara numeriskt\",\"OK. Poäng=\" & LEFT(C46,FIND(\":\",C46)-1))","v":"OK. Poäng=4"},null,"2: Hög",{"$f":"IF(NOT(ISNUMBER(1*LEFT(F46,FIND(\":\",F46)-1))),\"FEL: Tecken innan kolon måste vara numeriskt\",\"OK. Poäng=\" & LEFT(F46,FIND(\":\",F46)-1))","v":"OK. Poäng=2"}]
[null,null,"5: Mycket hög",{"$f":"IF(NOT(ISNUMBER(1*LEFT(C47,FIND(\":\",C47)-1))),\"FEL: Tecken innan kolon måste vara numeriskt\",\"OK. Poäng=\" & LEFT(C47,FIND(\":\",C47)-1))","v":"OK. Poäng=5"},null,"1: Mycket hög",{"$f":"IF(NOT(ISNUMBER(1*LEFT(F47,FIND(\":\",F47)-1))),\"FEL: Tecken innan kolon måste vara numeriskt\",\"OK. Poäng=\" & LEFT(F47,FIND(\":\",F47)-1))","v":"OK. Poäng=1"}]
[]
[null,null,"Angelägenhet"]
[null,null,"OBS. Siffrorna innan semi-kolon avgör poängen för det valda värdet. Formatet i listan nedan måste alltså vara nn:text där nn är den poäng som kopplas till valet."]
[null,null,"Angelägenhet","Kontroll"]
[null,null,"1: Mycket låg",{"$f":"IF(NOT(ISNUMBER(1*LEFT(C52,FIND(\":\",C52)-1))),\"FEL: Tecken innan kolon måste vara numeriskt\",\"OK. Poäng=\" & LEFT(C52,FIND(\":\",C52)-1))","v":"OK. Poäng=1"}]
[null,null,"2: Låg",{"$f":"IF(NOT(ISNUMBER(1*LEFT(C53,FIND(\":\",C53)-1))),\"FEL: Tecken innan kolon måste vara numeriskt\",\"OK. Poäng=\" & LEFT(C53,FIND(\":\",C53)-1))","v":"OK. Poäng=2"}]
[null,null,"3: Medel",{"$f":"IF(NOT(ISNUMBER(1*LEFT(C54,FIND(\":\",C54)-1))),\"FEL: Tecken innan kolon måste vara numeriskt\",\"OK. Poäng=\" & LEFT(C54,FIND(\":\",C54)-1))","v":"OK. Poäng=3"}]
[null,null,"4: Hög",{"$f":"IF(NOT(ISNUMBER(1*LEFT(C55,FIND(\":\",C55)-1))),\"FEL: Tecken innan kolon måste vara numeriskt\",\"OK. Poäng=\" & LEFT(C55,FIND(\":\",C55)-1))","v":"OK. Poäng=4"}]
[null,null,"5: Mycket hög",{"$f":"IF(NOT(ISNUMBER(1*LEFT(C56,FIND(\":\",C56)-1))),\"FEL: Tecken innan kolon måste vara numeriskt\",\"OK. Poäng=\" & LEFT(C56,FIND(\":\",C56)-1))","v":"OK. Poäng=5"}]
[]
[]
[null,null,"Risk och hinder"]
[null,null,"OBS. dessa värden används i fliken för hinderanalys. Siffrorna innan semi-kolon avgör respektive parameters värde. Formatet i listan för sannolikhet och konsekvens måste alltså vara nn:text där nn är den poäng som kopplas till valet."]
[null,null,"Konsekvenskategori",null,null,"Sannolikhet",null,"Konsekvens",null,"Riskbedömning",null,"Kontroll"]
[null,null,"Kan försena leveransen",null,null,"0: Ej Sannolikt",null,"0: Ingen konsekvens",null,"1: Mycket låg",{"$f":"IF(NOT(ISNUMBER(1*LEFT(J62,FIND(\":\",J62)-1))),\"FEL: Tecken innan kolon måste vara numeriskt\",\"OK. Poäng=\" & LEFT(J62,FIND(\":\",J62)-1))","v":"OK. Poäng=1"}]
[null,null,"Leveransen blir dyrare",null,null,"1: Mycket låg",null,"1: Mycket låg",null,"2: Låg",{"$f":"IF(NOT(ISNUMBER(1*LEFT(J63,FIND(\":\",J63)-1))),\"FEL: Tecken innan kolon måste vara numeriskt\",\"OK. Poäng=\" & LEFT(J63,FIND(\":\",J63)-1))","v":"OK. Poäng=2"}]
[null,null,"Försvårar införandet",null,null,"2: Låg",null,"2: Låg",null,"3: Medel",{"$f":"IF(NOT(ISNUMBER(1*LEFT(J64,FIND(\":\",J64)-1))),\"FEL: Tecken innan kolon måste vara numeriskt\",\"OK. Poäng=\" & LEFT(J64,FIND(\":\",J64)-1))","v":"OK. Poäng=3"}]
[null,null,"Hindrar nyttohemtagningen",null,null,"3: Hög",null,"3: Hög",null,"4: Hög",{"$f":"IF(NOT(ISNUMBER(1*LEFT(J65,FIND(\":\",J65)-1))),\"FEL: Tecken innan kolon måste vara numeriskt\",\"OK. Poäng=\" & LEFT(J65,FIND(\":\",J65)-1))","v":"OK. Poäng=4"}]
[null,null,"Annan",null,null,"4: Mycket hög",null,"4: Mycket hög",null,"5: Mycket hög",{"$f":"IF(NOT(ISNUMBER(1*LEFT(J66,FIND(\":\",J66)-1))),\"FEL: Tecken innan kolon måste vara numeriskt\",\"OK. Poäng=\" & LEFT(J66,FIND(\":\",J66)-1))","v":"OK. Poäng=5"}]

{"sheet":"-Kalkyldata-","index":10,"n_rows":51,"n_cols":21,"rows_kept":51,"hidden":true,"merged":[[7,2,7,3],[7,5,7,8],[7,11,7,15],[7,17,7,18],[7,20,7,21],[19,2,19,3],[19,5,19,8],[19,11,19,12],[31,5,31,8],[31,11,31,12]]}
[null,null,"Kalkyldata"]
[null,null,"Den här fliken innehåller olika beräkningar (t.ex. pivottabeller) som används för diagram i fliken Business Case"]
[]
[]
[null,null,"Kostnad",null,null,"Nytta",{"$nulls":11},"Angelägenhet",null,null,"Genomförbarhet"]
[]
[null,null,"Kostnad per kostnadstyp",null,null,"Osäkerhetsanalys kvantitativa nyttor",{"$nulls":5},"Kvalitativa nyttor",{"$nulls":5},"Angelägenhet",null,null,"Genomförbarhet"]
[null,null,"Denna pivottabell används som underlag för diagrammet \"Kostnad per kostnadstyp\" på Business Case-fliken",null,null,"Denna pivottabell används som underlag för diagrammet \"Osäkerhetsbedömning\" på Business Case-fliken",{"$nulls":5},"Denna pivottabell används som underlag för diagrammet \"ANTAL KVALITATIVA NYTTOR PER KATEGORI OCH BETYDELSE\" på Business Case-fliken",{"$nulls":5},"Denna pivottabell används som underlag för diagrammet \"Angelägenhet\" på Business Case-fliken",null,null,"Genomförbarhet"]
[null,null,"Radetiketter","Sum of Summa",null,null,"Nytta","Kostnad","Nettonytta",null,null,"Count of Nyttans betydelse","Kolumnetiketter"]
[null,null,"(blank)",0,null,"Min",{"$f":"'Ekonomiska nyttor'!AO22","v":0},{"$f":"Kostnader!AI21","v":940},{"$f":"G10-H12","v":-940},null,null,"Radetiketter","(tom)","3: Medium"]
[null,null,"Införande",356,null,"Troligt",{"$f":"'Ekonomiska nyttor'!AN22","v":6400},{"$f":"Kostnader!AH21","v":916},{"$f":"G11-H11","v":5484},null,null,"(tom)",null,3]
[null,null,"Drift/Förvaltning",560,null,"Max",{"$f":"'Ekonomiska nyttor'!AP22","v":0},{"$f":"Kostnader!AJ21","v":940},{"$f":"G12-H10","v":-940}]
[null,null,"Totalsumma",916]
[]
[]
[]
[]
[]
[null,null,"Kostnad per intressent",null,null,"Total nytta per intressent",{"$nulls":5},"Individuella kvalitativa nyttor"]
[null,null,"Denna pivottabell används som underlag för diagrammet \"Kostnad per intressent\" på Business Case-fliken",null,null,"Denna pivottabell används som underlag för diagrammet \"Nytta per intressent\" på Business Case-fliken",{"$nulls":5},"Denna pivottabell används som underlag för diagrammet \"Individuella kvalitativa nyttor\" på Business Case-fliken"]
[null,null,"Radetiketter","Summa av Summa",null,"Radetiketter","Summa av Summa",{"$nulls":4},"Radetiketter","Summa av Bedömd vikt"]
[null,null,"VO Digitalisering och medicinsk teknik",916,null,"ANOPIVA",{"v":4400,"d":"4,400"},{"$nulls":4},"(blank) @ (blank)",9]
[null,null,"(blank)",0,null,"Folkhälsa",{"v":1295,"d":"1,295"},{"$nulls":4},"Totalsumma",9]
[null,null,"Totalsumma",916,null,"Biobanken Norr",705]
[{"$nulls":5},"(blank)",0]
[{"$nulls":5},"Totalsumma",{"v":6400,"d":"6,400"}]
[]
[]
[]
[]
[{"$nulls":5},"Total nytta per kategori",{"$nulls":5},"Individuella Ekonomiska nyttor"]
[{"$nulls":5},"Denna pivottabell används som underlag för diagrammet \"Nytta per kategori\" på Business Case-fliken",{"$nulls":5},"Denna pivottabell används som underlag för diagrammet \"Individuella ekonomiska nyttor\" på Business Case-fliken"]
[{"$nulls":5},"Radetiketter","Summa av Summa",{"$nulls":4},"Radetiketter","Summa av Summa"]
[{"$nulls":5},"(blank)",0,{"$nulls":4},"(blank) @ (blank)",0]
[{"$nulls":5},"Reducerad personalkostnad",{"v":5105,"d":"5,105"},{"$nulls":4},"Reducerad personalkostnad @ Biobanken Norr",705]
[{"$nulls":5},"Övriga besparingar",{"v":1295,"d":"1,295"},{"$nulls":4},"Övriga besparingar @ Folkhälsa",{"v":1295,"d":"1,295"}]
[{"$nulls":5},"Totalsumma",{"v":6400,"d":"6,400"},{"$nulls":4},"Reducerad personalkostnad @ ANOPIVA",{"v":4400,"d":"4,400"}]
[{"$nulls":11},"Totalsumma",{"v":6400,"d":"6,400"}]
[]
[]
[]
[]
[]
[null,null,"Följande rader används för beräkning av Payback-år"]
[null,null,"Ack. diskonterat kassaflöde > 0?",{"$f":"'Business Case'!AV36>0","v":true},{"$f":"'Business Case'!AW36>0","v":true},{"$f":"'Business Case'!AX36>0","v":true},{"$f":"'Business Case'!AY36>0","v":true},{"$f":"'Business Case'!AZ36>0","v":true},{"$f":"'Business Case'!BA36>0","v":true},{"$f":"'Business Case'!BB36>0","v":true},{"$f":"'Business Case'!BC36>0","v":true},{"$f":"'Business Case'!BD36>0","v":true},{"$f":"'Business Case'!BE36>0","v":true}]
[null,null,"Årets och alla framtida års ackumulerade kassaflöde > 0?",{"$f":"IF(ISERROR(MATCH(FALSE,D45:$M$45,0)),TRUE,FALSE)","v":true},{"$f":"IF(ISERROR(MATCH(FALSE,E45:$M$45,0)),TRUE,FALSE)","v":true},{"$f":"IF(ISERROR(MATCH(FALSE,F45:$M$45,0)),TRUE,FALSE)","v":true},{"$f":"IF(ISERROR(MATCH(FALSE,G45:$M$45,0)),TRUE,FALSE)","v":true},{"$f":"IF(ISERROR(MATCH(FALSE,H45:$M$45,0)),TRUE,FALSE)","v":true},{"$f":"IF(ISERROR(MATCH(FALSE,I45:$M$45,0)),TRUE,FALSE)","v":true},{"$f":"IF(ISERROR(MATCH(FALSE,J45:$M$45,0)),TRUE,FALSE)","v":true},{"$f":"IF(ISERROR(MATCH(FALSE,K45:$M$45,0)),TRUE,FALSE)","v":true},{"$f":"IF(ISERROR(MATCH(FALSE,L45:$M$45,0)),TRUE,FALSE)","v":true},{"$f":"IF(ISERROR(MATCH(FALSE,M45:$M$45,0)),TRUE,FALSE)","v":true}]
[null,null,"Är payback-år?",{"$f":"IF('Business Case'!AV12=Grunddata!$D$12,IF(D46,TRUE,FALSE),IF(AND(D46,NOT(#REF!)),TRUE,FALSE))","v":true},{"$f":"IF('Business Case'!AW12=Grunddata!$D$12,IF(E46,TRUE,FALSE),IF(AND(E46,NOT(D46)),TRUE,FALSE))","v":false},{"$f":"IF('Business Case'!AX12=Grunddata!$D$12,IF(F46,TRUE,FALSE),IF(AND(F46,NOT(E46)),TRUE,FALSE))","v":false},{"$f":"IF('Business Case'!AY12=Grunddata!$D$12,IF(G46,TRUE,FALSE),IF(AND(G46,NOT(F46)),TRUE,FALSE))","v":false},{"$f":"IF('Business Case'!AZ12=Grunddata!$D$12,IF(H46,TRUE,FALSE),IF(AND(H46,NOT(G46)),TRUE,FALSE))","v":false},{"$f":"IF('Business Case'!BA12=Grunddata!$D$12,IF(I46,TRUE,FALSE),IF(AND(I46,NOT(H46)),TRUE,FALSE))","v":false},{"$f":"IF('Business Case'!BB12=Grunddata!$D$12,IF(J46,TRUE,FALSE),IF(AND(J46,NOT(I46)),TRUE,FALSE))","v":false},{"$f":"IF('Business Case'!BC12=Grunddata!$D$12,IF(K46,TRUE,FALSE),IF(AND(K46,NOT(J46)),TRUE,FALSE))","v":false},{"$f":"IF('Business Case'!BD12=Grunddata!$D$12,IF(L46,TRUE,FALSE),IF(AND(L46,NOT(K46)),TRUE,FALSE))","v":false},{"$f":"IF('Business Case'!BE12=Grunddata!$D$12,IF(M46,TRUE,FALSE),IF(AND(M46,NOT(L46)),TRUE,FALSE))","v":false}]
[]
[null,null,"Nyckeltal"]
[null,null,"NPV (TKR)",{"$f":"'Business Case'!BF35","v":{"v":5327.464563599229,"d":"5,327"}}]
[null,null,"Payback (år)",{"$f":"IF(ISERROR(IF(MATCH(TRUE,D47:M47,0)=1,1,MATCH(TRUE,D47:L47,0)-INDEX('Business Case'!AV36:BE36,1,MATCH(TRUE,D47:L47,0))/(INDEX('Business Case'!AV36:BE36,1,MATCH(TRUE,D47:L47,0))-INDEX('Business Case'!AV36:BE36,1,MATCH(TRUE,D47:L47,0)-1)))),\"Ingen payback\",IF(MATCH(TRUE,D47:L47,0)=1,1,MATCH(TRUE,D47:L47,0)-INDEX('Business Case'!AV36:BE36,1,MATCH(TRUE,D47:L47,0))/(INDEX('Business Case'!AV36:BE36,1,MATCH(TRUE,D47:L47,0))-INDEX('Business Case'!AV36:BE36,1,MATCH(TRUE,D47:L47,0)-1))))","v":{"v":1,"d":"1.0"}}]